Workbook

Sheet DaoyouModelConfig
A1: ID | B1: name | D1: quality | E1: bodyIcon | F1: headIcon | G1: growupRate | H1: des | I1: desUnlockLv | N1: PreferGiftID | O1: shownPreferGiftID | T1: guajiBuffID | Y1: daolvSkillID | AA1: EmotionLvforQuest | AB1: QuestID | AD1: EmotionLvforspecialGift | AE1: specialGiftID | AF1: specialGiftNum
A2: int | B2: int | D2: int | E2: string | F2: string | G2: int | H2: int[] | I2: int[] | N2: int[] | O2: int[] | T2: int[] | Y2: int[] | AA2: int | AB2: int | AD2: int[] | AE2: int[] | AF2: int[]
A4: ID | B4: 名称 | C4: 名称 | D4: 道友品质 | E4: 半身像 | F4: 头像 | G4: 潜力 80=80% 等级差 | H4: 介绍 | I4: 介绍解锁相熟等级 | N4: 喜好的礼物ID | O4: 默认显示的礼物ID | P4: 喜好礼物1 | Q4: 喜好礼物2 | R4: 喜好礼物3 | T4: 挂机增益类型 | U4: 产出概率 | V4: 产出类型1 | W4: 产出类型2 | Y4: 成为道侣后提供的技能ID | AA4: 触发道侣任务的好感度等级 | AB4: 道侣任务ID | AD4: 特殊奖励好感度等级 | AE4: 特殊奖励ID | AF4: 特殊奖励数量
A5: 1 | B5: 1953 | C5: 道友1 | D5: 2 | G5: 60 | H5: =_xlfn.TEXTJOIN(";",1,J5:L5) -> 1963;1964;1965 | I5: 1;3;6 | J5: 1963 | K5: 1964 | L5: 1965 | N5: =_xlfn.TEXTJOIN(";",1,P5:R5) -> 1201;1202;1203 | O5: =P5 -> 1201 | P5: 1201 | Q5: 1202 | R5: 1203 | T5: =_xlfn.TEXTJOIN(";",1,U5:W5) -> 1;11;22 | U5: 1 | V5: 11 | W5: 22 | Y5: 1 | AA5: 2 | AB5: 9003 | AD5: 3 | AE5: 10002 | AF5: 1
A6: 2 | B6: 1954 | C6: 道友2 | D6: 2 | G6: 60 | H6: =_xlfn.TEXTJOIN(";",1,J6:L6) -> 1966;1967;1968 | I6: 1;3;6 | J6: 1966 | K6: 1967 | L6: 1968 | N6: =_xlfn.TEXTJOIN(";",1,P6:R6) -> 1204;1205;1206 | O6: =P6 -> 1204 | P6: 1204 | Q6: 1205 | R6: 1206 | T6: =_xlfn.TEXTJOIN(";",1,U6:W6) -> 1;21;32 | U6: 1 | V6: 21 | W6: 32 | Y6: 2 | AA6: 2 | AB6: 9002 | AD6: 4 | AE6: 10003 | AF6: 1
A7: 3 | B7: 1955 | C7: 道友3 | D7: 2 | G7: 60 | H7: 1969;1970;1971 | I7: 1;3;6 | J7: 1969 | K7: 1970 | L7: 1971 | N7: 1207;1208;1209 | O7: 1207 | P7: 1207 | Q7: 1208 | R7: 1209 | T7: 1;31;42 | U7: 1 | V7: 31 | W7: 42 | Y7: 3 | AA7: 2 | AB7: 9001 | AD7: 5 | AE7: 10004 | AF7: 1
A8: 4 | B8: 1956 | C8: 道友4 | D8: 3 | G8: 80 | H8: 1972;1973;1974 | I8: 1;3;6 | J8: 1972 | K8: 1973 | L8: 1974 | N8: 1301;1302;1303 | O8: 1301 | P8: 1301 | Q8: 1302 | R8: 1303 | T8: 2;41;12 | U8: 2 | V8: 41 | W8: 12 | Y8: 4 | AA8: 3 | AB8: 9002 | AD8: 4 | AE8: 10005 | AF8: 1
A9: 5 | B9: 1957 | C9: 道友5 | D9: 3 | G9: 80 | H9: 1975;1976;1977 | I9: 1;3;6 | J9: 1975 | K9: 1976 | L9: 1977 | N9: 1401;1402;1403 | O9: 1401 | P9: 1401 | Q9: 1402 | R9: 1403 | T9: 2;12;33 | U9: 2 | V9: 12 | W9: 33 | Y9: 5 | AA9: 3 | AB9: 9001 | AD9: 5 | AE9: 10006 | AF9: 1
A10: 6 | B10: 1958 | C10: 道友6 | D10: 3 | G10: 80 | H10: 1978;1979;1980 | I10: 1;3;6 | J10: 1978 | K10: 1979 | L10: 1980 | N10: 1201;1202;1203 | O10: 1201 | P10: 1201 | Q10: 1202 | R10: 1203 | T10: 2;22;43 | U10: 2 | V10: 22 | W10: 43 | Y10: 6 | AA10: 3 | AB10: 9002 | AD10: 6 | AE10: 10007 | AF10: 1
A11: 7 | B11: 1959 | C11: 道友7 | D11: 4 | G11: 100 | H11: 1981;1982;1983 | I11: 1;3;6 | J11: 1981 | K11: 1982 | L11: 1983 | N11: 1204;1205;1206 | O11: 1204 | P11: 1204 | Q11: 1205 | R11: 1206 | T11: 3;32;13 | U11: 3 | V11: 32 | W11: 13 | Y11: 7 | AA11: 4 | AB11: 9001 | AD11: 5 | AE11: 10008 | AF11: 1
A12: 8 | B12: 1960 | C12: 道友8 | D12: 4 | G12: 100 | H12: 1984;1985;1986 | I12: 1;3;6 | J12: 1984 | K12: 1985 | L12: 1986 | N12: 1207;1208;1209 | O12: 1207 | P12: 1207 | Q12: 1208 | R12: 1209 | T12: 3;42;23 | U12: 3 | V12: 42 | W12: 23 | Y12: 8 | AA12: 4 | AB12: 9002 | AD12: 6 | AE12: 10009 | AF12: 1
A13: 9 | B13: 1961 | C13: 道友9 | D13: 5 | G13: 110 | H13: 1987;1988;1989 | I13: 1;3;6 | J13: 1987 | K13: 1988 | L13: 1989 | N13: 1301;1302;1303 | O13: 1301 | P13: 1301 | Q13: 1302 | R13: 1303 | T13: 4;13;34 | U13: 4 | V13: 13 | W13: 34 | Y13: 1 | AA13: 5 | AB13: 9001 | AD13: 7 | AE13: 10010 | AF13: 1
A14: 10 | B14: 1962 | C14: 道友10 | D14: 6 | G14: 120 | H14: 1990;1991;1992 | I14: 1;3;6 | J14: 1990 | K14: 1991 | L14: 1992 | N14: 1401;1402;1403 | O14: 1401 | P14: 1401 | Q14: 1402 | R14: 1403 | T14: 4;23;44 | U14: 4 | V14: 23 | W14: 44 | Y14: 2 | AA14: 6 | AB14: 9002 | AD14: 8 | AE14: 10011 | AF14: 1

Sheet emotionConfig
A1: ID | B1: type | C1: icon | D1: des | F1: hanganUpRate
A2: int | B2: int | C2: string | D2: int | F2: int[]
A4: ID | B4: 类型 1=好心情 2=平衡心情 3=坏心情 | C4: icon | D4: 描述ID | E4: 描述（策划） | F4: 心情影响好感度的范围 100=10%
A5: 1 | B5: 1 | D5: 2043 | E5: 心情很好，送他礼物可获得更多好感度 | F5: 1100;1300 | G5: 开心
A6: 2 | B6: 2 | D6: 2044 | E6: 心情一般 | F6: 900;1100 | G6: 一般
A7: 3 | B7: 3 | D7: 2045 | E7: 心情失落，送他礼物获得低于标准值的好感度 | F7: 700;900 | G7: 失落

Sheet daolvSkill
A1: ID | B1: AttrID | C1: lv | D1: name | F1: des | H1: para | I1: type
A2: int | B2: int | C2: int | D2: int | F2: int | H2: int[] | I2: int
A4: ID | B4: 对应AttributeConfig中的ID | C4: 等级 | D4: 名称 | E4: 名称 | F4: 描述 | G4: 描述 | H4: 参数 | I4: 类型 1=唯一 2=叠加 | J4: 成长所需礼物ID | K4: 每单位增加的值
A5: 1 | B5: 101 | C5: 1 | D5: 2046 | E5: 生命增幅 | F5: 2054 | G5: 玩家生命+{0}% | H5: 3 | I5: 2
A6: 2 | B6: 101 | C6: 2 | D6: 2046 | E6: 生命增幅 | F6: 2054 | G6: 玩家生命+{0}% | H6: 6 | I6: 2
A7: 3 | B7: 101 | C7: 3 | D7: 2046 | E7: 生命增幅 | F7: 2054 | G7: 玩家生命+{0}% | H7: 9 | I7: 2
A8: 4 | B8: 101 | C8: 4 | D8: 2046 | E8: 生命增幅 | F8: 2054 | G8: 玩家生命+{0}% | H8: 12 | I8: 2
A9: 5 | B9: 101 | C9: 5 | D9: 2046 | E9: 生命增幅 | F9: 2054 | G9: 玩家生命+{0}% | H9: 15 | I9: 2
A10: 6 | B10: 102 | C10: =C5 -> 1 | D10: 2047 | E10: 攻击增幅 | F10: 2055 | G10: 玩家攻击+{0}% | H10: 3 | I10: 2
A11: 7 | B11: 102 | C11: =C6 -> 2 | D11: 2047 | E11: 攻击增幅 | F11: 2055 | G11: 玩家攻击+{0}% | H11: 6 | I11: 2
A12: 8 | B12: 102 | C12: 3 | D12: 2047 | E12: 攻击增幅 | F12: 2055 | G12: 玩家攻击+{0}% | H12: 9 | I12: 2
A13: 9 | B13: 102 | C13: 4 | D13: 2047 | E13: 攻击增幅 | F13: 2055 | G13: 玩家攻击+{0}% | H13: 12 | I13: 2
A14: 10 | B14: 102 | C14: 5 | D14: 2047 | E14: 攻击增幅 | F14: 2055 | G14: 玩家攻击+{0}% | H14: 15 | I14: 2
A15: 11 | B15: 103 | C15: 1 | D15: 2048 | E15: 防御增幅 | F15: 2056 | G15: 玩家防御+{0}% | H15: 3 | I15: 2
A16: 12 | B16: 103 | C16: 2 | D16: 2048 | E16: 防御增幅 | F16: 2056 | G16: 玩家防御+{0}% | H16: 6 | I16: 2
A17: 13 | B17: 103 | C17: 3 | D17: 2048 | E17: 防御增幅 | F17: 2056 | G17: 玩家防御+{0}% | H17: 9 | I17: 2
A18: 14 | B18: 103 | C18: 4 | D18: 2048 | E18: 防御增幅 | F18: 2056 | G18: 玩家防御+{0}% | H18: 12 | I18: 2
A19: 15 | B19: 103 | C19: 5 | D19: 2048 | E19: 防御增幅 | F19: 2056 | G19: 玩家防御+{0}% | H19: 15 | I19: 2
A20: 16 | B20: 106 | C20: 1 | D20: 2049 | E20: 金之灵根 | F20: 2057 | G20: 玩家金灵根+{0} | H20: 2 | I20: 1
A21: 17 | B21: 106 | C21: 2 | D21: 2049 | E21: 金之灵根 | F21: 2057 | G21: 玩家金灵根+{0} | H21: 4 | I21: 1
A22: 18 | B22: 106 | C22: 3 | D22: 2049 | E22: 金之灵根 | F22: 2057 | G22: 玩家金灵根+{0} | H22: 6 | I22: 1
A23: 19 | B23: 106 | C23: 4 | D23: 2049 | E23: 金之灵根 | F23: 2057 | G23: 玩家金灵根+{0} | H23: 8 | I23: 1
A24: 20 | B24: 106 | C24: 5 | D24: 2049 | E24: 金之灵根 | F24: 2057 | G24: 玩家金灵根+{0} | H24: 10 | I24: 1
A25: 21 | B25: 107 | C25: 1 | D25: 2050 | E25: 水之灵根 | F25: 2058 | G25: 玩家水灵根+{0} | H25: 2 | I25: 1
A26: 22 | B26: 107 | C26: 2 | D26: 2050 | E26: 水之灵根 | F26: 2058 | G26: 玩家水灵根+{0} | H26: 4 | I26: 1
A27: 23 | B27: 107 | C27: 3 | D27: 2050 | E27: 水之灵根 | F27: 2058 | G27: 玩家水灵根+{0} | H27: 6 | I27: 1
A28: 24 | B28: 107 | C28: 4 | D28: 2050 | E28: 水之灵根 | F28: 2058 | G28: 玩家水灵根+{0} | H28: 8 | I28: 1
A29: 25 | B29: 107 | C29: 5 | D29: 2050 | E29: 水之灵根 | F29: 2058 | G29: 玩家水灵根+{0} | H29: 10 | I29: 1
A30: 26 | B30: 108 | C30: 1 | D30: 2051 | E30: 木之灵根 | F30: 2059 | G30: 玩家木灵根+{0} | H30: 2 | I30: 1
A31: 27 | B31: 108 | C31: 2 | D31: 2051 | E31: 木之灵根 | F31: 2059 | G31: 玩家木灵根+{0} | H31: 4 | I31: 1
A32: 28 | B32: 108 | C32: 3 | D32: 2051 | E32: 木之灵根 | F32: 2059 | G32: 玩家木灵根+{0} | H32: 6 | I32: 1
A33: 29 | B33: 108 | C33: 4 | D33: 2051 | E33: 木之灵根 | F33: 2059 | G33: 玩家木灵根+{0} | H33: 8 | I33: 1
A34: 30 | B34: 108 | C34: 5 | D34: 2051 | E34: 木之灵根 | F34: 2059 | G34: 玩家木灵根+{0} | H34: 10 | I34: 1
A35: 31 | B35: 109 | C35: 1 | D35: 2052 | E35: 火之灵根 | F35: 2060 | G35: 玩家火灵根+{0} | H35: 2 | I35: 1
A36: 32 | B36: 109 | C36: 2 | D36: 2052 | E36: 火之灵根 | F36: 2060 | G36: 玩家火灵根+{0} | H36: 4 | I36: 1
A37: 33 | B37: 109 | C37: 3 | D37: 2052 | E37: 火之灵根 | F37: 2060 | G37: 玩家火灵根+{0} | H37: 6 | I37: 1
A38: 34 | B38: 109 | C38: 4 | D38: 2052 | E38: 火之灵根 | F38: 2060 | G38: 玩家火灵根+{0} | H38: 8 | I38: 1
A39: 35 | B39: 109 | C39: 5 | D39: 2052 | E39: 火之灵根 | F39: 2060 | G39: 玩家火灵根+{0} | H39: 10 | I39: 1
A40: 36 | B40: 110 | C40: 1 | D40: 2053 | E40: 土之灵根 | F40: 2061 | G40: 玩家土灵根+{0} | H40: 2 | I40: 1
A41: 37 | B41: 110 | C41: 2 | D41: 2053 | E41: 土之灵根 | F41: 2061 | G41: 玩家土灵根+{0} | H41: 4 | I41: 1
A42: 38 | B42: 110 | C42: 3 | D42: 2053 | E42: 土之灵根 | F42: 2061 | G42: 玩家土灵根+{0} | H42: 6 | I42: 1
A43: 39 | B43: 110 | C43: 4 | D43: 2053 | E43: 土之灵根 | F43: 2061 | G43: 玩家土灵根+{0} | H43: 8 | I43: 1
A44: 40 | B44: 110 | C44: 5 | D44: 2053 | E44: 土之灵根 | F44: 2061 | G44: 玩家土灵根+{0} | H44: 10 | I44: 1

Sheet guajibuff
A1: ID | B1: name | D1: Quality | E1: GivingRate | F1: paraValue | G1: des
A2: int | B2: int | D2: int | E2: int | F2: int | G2: int
A4: ID | B4: 名称 | C4: 名称 | D4: 品质 | E4: 产出比例 100=100% | F4: 对应的para值 | G4: 描述 | H4: 说明
A5: 1 | B5: 2063 | C5: 慷概之心·小 | D5: 1 | E5: 25 | F5: 5 | G5: 2062 | H5: 这位道友离开时有{0}%概率赠与玩家奖励
A6: 2 | B6: 2064 | C6: 慷概之心·中 | D6: 1 | E6: 50 | F6: 5 | G6: 2062 | H6: 这位道友离开时有{0}%概率赠与玩家奖励
A7: 3 | B7: 2065 | C7: 慷概之心·大 | D7: 1 | E7: 75 | F7: 5 | G7: 2062 | H7: 这位道友离开时有{0}%概率赠与玩家奖励
A8: 4 | B8: 2066 | C8: 慷概之心·极 | D8: 1 | E8: 100 | F8: 5 | G8: 2062 | H8: 这位道友离开时有{0}%概率赠与玩家奖励
A10: 11 | B10: 1993 | C10: 双修之旅·小 | D10: 2 | E10: 25 | F10: 1 | G10: =B10+16 -> 2009 | H10: 这位道友离开时会给与玩家少量修为奖励
A11: 12 | B11: 1994 | C11: 双修之旅·中 | D11: 3 | E11: 50 | F11: 1 | G11: =B11+16 -> 2010 | H11: 这位道友离开时会给与玩家一些修为奖励
A12: 13 | B12: 1995 | C12: 双修之旅·大 | D12: 4 | E12: 75 | F12: 1 | G12: 2011 | H12: 这位道友离开时会给与玩家很多修为奖励
A13: 14 | B13: 1996 | C13: 双修之旅·极 | D13: 5 | E13: 100 | F13: 1 | G13: 2012 | H13: 这位道友离开时会给与玩家丰厚修为奖励
A15: 21 | B15: =B10+4 -> 1997 | C15: 商贾之道·小 | D15: 2 | E15: 25 | F15: 2 | G15: =B15+16 -> 2013 | H15: 这位道友离开时会给与玩家少量铜钱奖励
A16: 22 | B16: =B11+4 -> 1998 | C16: 商贾之道·中 | D16: 3 | E16: 50 | F16: 2 | G16: =B16+16 -> 2014 | H16: 这位道友离开时会给与玩家一些铜钱奖励
A17: 23 | B17: 1999 | C17: 商贾之道·大 | D17: 4 | E17: 75 | F17: 2 | G17: 2015 | H17: 这位道友离开时会给与玩家很多铜钱奖励
A18: 24 | B18: 2000 | C18: 商贾之道·极 | D18: 5 | E18: 100 | F18: 2 | G18: 2016 | H18: 这位道友离开时会给与玩家丰厚铜钱奖励
A20: 31 | B20: =B15+4 -> 2001 | C20: 席地论法·小 | D20: 2 | E20: 25 | F20: 3 | G20: =B20+16 -> 2017 | H20: 这位道友离开时会给与玩家少量功法灵气奖励
A21: 32 | B21: =B16+4 -> 2002 | C21: 席地论法·中 | D21: 3 | E21: 50 | F21: 3 | G21: =B21+16 -> 2018 | H21: 这位道友离开时会给与玩家一些功法灵气奖励
A22: 33 | B22: 2003 | C22: 席地论法·大 | D22: 4 | E22: 75 | F22: 3 | G22: 2019 | H22: 这位道友离开时会给与玩家很多功法灵气奖励
A23: 34 | B23: 2004 | C23: 席地论法·极 | D23: 5 | E23: 100 | F23: 3 | G23: 2020 | H23: 这位道友离开时会给与玩家丰厚功法灵气奖励
A25: 41 | B25: =B20+4 -> 2005 | C25: 坎山寻宝·小 | D25: 2 | E25: 25 | F25: 4 | G25: =B25+16 -> 2021 | H25: 这位道友离开时会给与玩家少量法宝灵韵奖励
A26: 42 | B26: =B21+4 -> 2006 | C26: 坎山寻宝·中 | D26: 3 | E26: 50 | F26: 4 | G26: =B26+16 -> 2022 | H26: 这位道友离开时会给与玩家一些法宝灵韵奖励
A27: 43 | B27: 2007 | C27: 坎山寻宝·大 | D27: 4 | E27: 75 | F27: 4 | G27: 2023 | H27: 这位道友离开时会给与玩家很多法宝灵韵奖励
A28: 44 | B28: 2008 | C28: 坎山寻宝·极 | D28: 5 | E28: 100 | F28: 4 | G28: 2024 | H28: 这位道友离开时会给与玩家丰厚法宝灵韵奖励

Sheet 道友加成辅助
A1: BuffType | C1: BuffValue
A2: 1 | B2: 属性加成 | C2: 属性ID；加成数值
A3: 2
A4: 3
A5: 4
A6: 5
A7: 6
A8: 7
A9: 8
A10: 9
A11: 10
A12: 11
A13: 12
A14: 13

Sheet DaoyouLevelupConfig
A1: ID | B1: name | D1: exp | E1: prizeID | F1: prizeNum | G1: guajiGrowup
A2: int | B2: int | D2: int | E2: int[] | F2: int[] | G2: int
A4: LV | B4: 名称 | D4: 升级所需经验 | E4: 道具奖励ID | F4: 道具奖励数量 | G4: 挂机增益成长率 100=100%
A5: 1 | B5: 2025 | C5: 好感度1 | D5: 10 | E5: -1 | F5: -1 | G5: 0
A6: 2 | B6: 2026 | C6: 好感度2 | D6: 20 | E6: 1002 | F6: 1 | G6: 100
A7: 3 | B7: 2027 | C7: 好感度3 | D7: 30 | E7: 1002 | F7: 1 | G7: 112
A8: 4 | B8: 2028 | C8: 好感度4 | D8: 40 | E8: 1002 | F8: 1 | G8: 125
A9: 5 | B9: 2029 | C9: 好感度5 | D9: 50 | E9: 1002 | F9: 1 | G9: 137
A10: 6 | B10: 2030 | C10: 好感度6 | D10: 60 | E10: 1002 | F10: 1 | G10: 150
A11: 7 | B11: 2031 | C11: 好感度7 | D11: 70 | E11: 1002 | F11: 1 | G11: 162
A12: 8 | B12: 2032 | C12: 好感度8 | D12: 80 | E12: 1002 | F12: 1 | G12: 175
A13: 9 | B13: 2033 | C13: 好感度9 | D13: 90 | E13: 1002 | F13: 1 | G13: 187
A14: 10 | B14: 2034 | C14: 好感度10 | D14: -1 | E14: 1002 | F14: 1 | G14: 200

Sheet DaoyouGiftConfig
A1: ID | B1: ItemID | D1: emotionValue
A2: int | B2: int | D2: int
A4: ID | B4: 道具ID | C4: 道具名称 | D4: 默认增加的好感度值
A5: 1 | B5: 1201 | C5: =VLOOKUP(B5,[1]ItemConfig!$A:$C,3,FALSE) -> 渡劫丹-A1 | D5: 10
A6: 2 | B6: 1202 | C6: =VLOOKUP(B6,[1]ItemConfig!$A:$C,3,FALSE) -> 渡劫丹-A2 | D6: 20
A7: 3 | B7: 1203 | C7: =VLOOKUP(B7,[1]ItemConfig!$A:$C,3,FALSE) -> 渡劫丹-A3 | D7: 30
A8: 4 | B8: 1204 | C8: =VLOOKUP(B8,[1]ItemConfig!$A:$C,3,FALSE) -> 渡劫丹-B1 | D8: 10
A9: 5 | B9: 1205 | C9: =VLOOKUP(B9,[1]ItemConfig!$A:$C,3,FALSE) -> 渡劫丹-B2 | D9: 20
A10: 6 | B10: 1206 | C10: =VLOOKUP(B10,[1]ItemConfig!$A:$C,3,FALSE) -> 渡劫丹-B3 | D10: 30
A11: 7 | B11: 1207 | C11: =VLOOKUP(B11,[1]ItemConfig!$A:$C,3,FALSE) -> 渡劫丹-C1 | D11: 10
A12: 8 | B12: 1208 | C12: =VLOOKUP(B12,[1]ItemConfig!$A:$C,3,FALSE) -> 渡劫丹-C2 | D12: 20
A13: 9 | B13: 1209 | C13: =VLOOKUP(B13,[1]ItemConfig!$A:$C,3,FALSE) -> 渡劫丹-C3 | D13: 30
A14: 10 | B14: 1301 | C14: =VLOOKUP(B14,[1]ItemConfig!$A:$C,3,FALSE) -> 天材地宝1 | D14: 10
A15: 11 | B15: 1302 | C15: =VLOOKUP(B15,[1]ItemConfig!$A:$C,3,FALSE) -> 天材地宝2 | D15: 15
A16: 12 | B16: 1303 | C16: =VLOOKUP(B16,[1]ItemConfig!$A:$C,3,FALSE) -> 天材地宝3 | D16: 20
A17: 13 | B17: 1304 | C17: =VLOOKUP(B17,[1]ItemConfig!$A:$C,3,FALSE) -> 天材地宝4 | D17: 25
A18: 14 | B18: 1401 | C18: =VLOOKUP(B18,[1]ItemConfig!$A:$C,3,FALSE) -> 修为丹·下 | D18: 10
A19: 15 | B19: 1402 | C19: =VLOOKUP(B19,[1]ItemConfig!$A:$C,3,FALSE) -> 修为丹·中 | D19: 15
A20: 16 | B20: 1403 | C20: =VLOOKUP(B20,[1]ItemConfig!$A:$C,3,FALSE) -> 修为丹·上 | D20: 20
A21: 17 | B21: 1404 | C21: =VLOOKUP(B21,[1]ItemConfig!$A:$C,3,FALSE) -> 修为丹·极 | D21: 30
A22: 18 | B22: 1501 | C22: =VLOOKUP(B22,[1]ItemConfig!$A:$C,3,FALSE) -> 好感度礼物1 | D22: 50
A23: 19 | B23: 1502 | C23: =VLOOKUP(B23,[1]ItemConfig!$A:$C,3,FALSE) -> 好感度礼物2 | D23: 100
A24: 20 | B24: 11001 | C24: =VLOOKUP(B24,[1]ItemConfig!$A:$C,3,FALSE) -> 神龙鼎碎片 | D24: 20
A25: 21 | B25: 11002 | C25: =VLOOKUP(B25,[1]ItemConfig!$A:$C,3,FALSE) -> 破天斧碎片 | D25: 20
A26: 22 | B26: 11003 | C26: =VLOOKUP(B26,[1]ItemConfig!$A:$C,3,FALSE) -> 翡翠葫芦碎片 | D26: 20
A27: 23 | B27: 11004 | C27: =VLOOKUP(B27,[1]ItemConfig!$A:$C,3,FALSE) -> 混沌珠碎片 | D27: 20
A28: 24 | B28: 11005 | C28: =VLOOKUP(B28,[1]ItemConfig!$A:$C,3,FALSE) -> 琉璃宝塔碎片 | D28: 20
A29: 25 | B29: 11006 | C29: =VLOOKUP(B29,[1]ItemConfig!$A:$C,3,FALSE) -> 九幽镇魂瓶碎片 | D29: 20
A30: 26 | B30: 11007 | C30: =VLOOKUP(B30,[1]ItemConfig!$A:$C,3,FALSE) -> 玉莲守心灯碎片 | D30: 20
A31: 27 | B31: 11008 | C31: =VLOOKUP(B31,[1]ItemConfig!$A:$C,3,FALSE) -> 融灵塔碎片 | D31: 20
A32: 28 | B32: 11009 | C32: =VLOOKUP(B32,[1]ItemConfig!$A:$C,3,FALSE) -> 禁元珠碎片 | D32: 20
A33: 29 | B33: 11010 | C33: =VLOOKUP(B33,[1]ItemConfig!$A:$C,3,FALSE) -> 玄龟盾碎片 | D33: 20
A34: 30 | B34: 11011 | C34: =VLOOKUP(B34,[1]ItemConfig!$A:$C,3,FALSE) -> 天殇血刃剑碎片 | D34: 20
A35: 31 | B35: 13001 | C35: =VLOOKUP(B35,[1]ItemConfig!$A:$C,3,FALSE) -> 太虚幻剑经碎片 | D35: 20
A36: 32 | B36: 13002 | C36: =VLOOKUP(B36,[1]ItemConfig!$A:$C,3,FALSE) -> 天罡剑气诀碎片 | D36: 20
A37: 33 | B37: 13003 | C37: =VLOOKUP(B37,[1]ItemConfig!$A:$C,3,FALSE) -> 血刃金煌功碎片 | D37: 20
A38: 34 | B38: 13004 | C38: =VLOOKUP(B38,[1]ItemConfig!$A:$C,3,FALSE) -> 飞刃碎片 | D38: 20
A39: 35 | B39: 13005 | C39: =VLOOKUP(B39,[1]ItemConfig!$A:$C,3,FALSE) -> 金针碎片 | D39: 20
A40: 36 | B40: 13006 | C40: =VLOOKUP(B40,[1]ItemConfig!$A:$C,3,FALSE) -> 碧落幽冥劲碎片 | D40: 20
A41: 37 | B41: 13007 | C41: =VLOOKUP(B41,[1]ItemConfig!$A:$C,3,FALSE) -> 雾隐千流法碎片 | D41: 20
A42: 38 | B42: 13008 | C42: =VLOOKUP(B42,[1]ItemConfig!$A:$C,3,FALSE) -> 功法-水3碎片 | D42: 20
A43: 39 | B43: 13009 | C43: =VLOOKUP(B43,[1]ItemConfig!$A:$C,3,FALSE) -> 水球碎片 | D43: 20
A44: 40 | B44: 13010 | C44: =VLOOKUP(B44,[1]ItemConfig!$A:$C,3,FALSE) -> 冰刀碎片 | D44: 20
A45: 41 | B45: 13011 | C45: =VLOOKUP(B45,[1]ItemConfig!$A:$C,3,FALSE) -> 瘴影千丝术碎片 | D45: 20
A46: 42 | B46: 13012 | C46: =VLOOKUP(B46,[1]ItemConfig!$A:$C,3,FALSE) -> 蚀骨腐血掌碎片 | D46: 20
A47: 43 | B47: 13013 | C47: =VLOOKUP(B47,[1]ItemConfig!$A:$C,3,FALSE) -> 功法-木3碎片 | D47: 20
A48: 44 | B48: 13014 | C48: =VLOOKUP(B48,[1]ItemConfig!$A:$C,3,FALSE) -> 竹刺碎片 | D48: 20
A49: 45 | B49: 13015 | C49: =VLOOKUP(B49,[1]ItemConfig!$A:$C,3,FALSE) -> 飞叶碎片 | D49: 20
A50: 46 | B50: 13016 | C50: =VLOOKUP(B50,[1]ItemConfig!$A:$C,3,FALSE) -> 烈焰剑碎片 | D50: 20
A51: 47 | B51: 13017 | C51: =VLOOKUP(B51,[1]ItemConfig!$A:$C,3,FALSE) -> 赤焰龙吟功碎片 | D51: 20
A52: 48 | B52: 13018 | C52: =VLOOKUP(B52,[1]ItemConfig!$A:$C,3,FALSE) -> 朱雀燎原指碎片 | D52: 20
A53: 49 | B53: 13019 | C53: =VLOOKUP(B53,[1]ItemConfig!$A:$C,3,FALSE) -> 火球碎片 | D53: 20
A54: 50 | B54: 13020 | C54: =VLOOKUP(B54,[1]ItemConfig!$A:$C,3,FALSE) -> 火刀碎片 | D54: 20
A55: 51 | B55: 13021 | C55: =VLOOKUP(B55,[1]ItemConfig!$A:$C,3,FALSE) -> 黄尘灭魂刺碎片 | D55: 20
A56: 52 | B56: 13022 | C56: =VLOOKUP(B56,[1]ItemConfig!$A:$C,3,FALSE) -> 地裂屠龙斩碎片 | D56: 20
A57: 53 | B57: 13023 | C57: =VLOOKUP(B57,[1]ItemConfig!$A:$C,3,FALSE) -> 功法-土3碎片 | D57: 20
A58: 54 | B58: 13024 | C58: =VLOOKUP(B58,[1]ItemConfig!$A:$C,3,FALSE) -> 落石碎片 | D58: 20
A59: 55 | B59: 13025 | C59: =VLOOKUP(B59,[1]ItemConfig!$A:$C,3,FALSE) -> 小石头碎片 | D59: 20
A60: 56 | B60: 13501 | C60: =VLOOKUP(B60,[1]ItemConfig!$A:$C,3,FALSE) -> 天衍星辰诀碎片 | D60: 20
A61: 57 | B61: 13502 | C61: =VLOOKUP(B61,[1]ItemConfig!$A:$C,3,FALSE) -> 法宝秘籍碎片 | D61: 20
A62: 58 | B62: 13503 | C62: =VLOOKUP(B62,[1]ItemConfig!$A:$C,3,FALSE) -> 崩脉决碎片 | D62: 20
A63: 59 | B63: 13504 | C63: =VLOOKUP(B63,[1]ItemConfig!$A:$C,3,FALSE) -> 两仪决碎片 | D63: 20
A64: 60 | B64: 13505 | C64: =VLOOKUP(B64,[1]ItemConfig!$A:$C,3,FALSE) -> 火焰决碎片 | D64: 20
A65: 61 | B65: 13506 | C65: =VLOOKUP(B65,[1]ItemConfig!$A:$C,3,FALSE) -> 乾坤巨灵诀碎片 | D65: 20
A66: 62 | B66: 13507 | C66: =VLOOKUP(B66,[1]ItemConfig!$A:$C,3,FALSE) -> 极速齿轮碎片 | D66: 20
A67: 63 | B67: 13508 | C67: =VLOOKUP(B67,[1]ItemConfig!$A:$C,3,FALSE) -> 太虚剑意碎片 | D67: 20

Sheet DaoyouguajiResourcLevel
A1: ID | B1: para1 | C1: para2 | D1: para3 | E1: para4 | F1: para5
A2: int | B2: int | C2: int | D2: int | E2: int | F2: int
A4: ID | B4: 玩家修为产出 | C4: 铜钱产出 | D4: 功法灵气 | E4: 法宝灵韵 | F4: 赠与概率
A5: 1 | B5: =ROUND([2]ResourceLevelConfig!$E5*0.05,0) -> 50 | C5: =ROUND([2]ResourceLevelConfig!$C5*0.05,0) -> 50 | D5: =ROUND([2]ResourceLevelConfig!$G5*0.05,0) -> 50 | E5: =ROUND([2]ResourceLevelConfig!$H5*0.05,0) -> 50 | F5: 201
A6: 2 | B6: =ROUND([2]ResourceLevelConfig!$E6*0.05,0) -> 51 | C6: =ROUND([2]ResourceLevelConfig!$C6*0.05,0) -> 51 | D6: =ROUND([2]ResourceLevelConfig!$G6*0.05,0) -> 51 | E6: =ROUND([2]ResourceLevelConfig!$H6*0.05,0) -> 51 | F6: 202
A7: 3 | B7: =ROUND([2]ResourceLevelConfig!$E7*0.05,0) -> 51 | C7: =ROUND([2]ResourceLevelConfig!$C7*0.05,0) -> 51 | D7: =ROUND([2]ResourceLevelConfig!$G7*0.05,0) -> 51 | E7: =ROUND([2]ResourceLevelConfig!$H7*0.05,0) -> 51 | F7: 203
A8: 4 | B8: =ROUND([2]ResourceLevelConfig!$E8*0.05,0) -> 52 | C8: =ROUND([2]ResourceLevelConfig!$C8*0.05,0) -> 52 | D8: =ROUND([2]ResourceLevelConfig!$G8*0.05,0) -> 52 | E8: =ROUND([2]ResourceLevelConfig!$H8*0.05,0) -> 52 | F8: 204
A9: 5 | B9: =ROUND([2]ResourceLevelConfig!$E9*0.05,0) -> 52 | C9: =ROUND([2]ResourceLevelConfig!$C9*0.05,0) -> 52 | D9: =ROUND([2]ResourceLevelConfig!$G9*0.05,0) -> 52 | E9: =ROUND([2]ResourceLevelConfig!$H9*0.05,0) -> 52 | F9: 205
A10: 6 | B10: =ROUND([2]ResourceLevelConfig!$E10*0.05,0) -> 53 | C10: =ROUND([2]ResourceLevelConfig!$C10*0.05,0) -> 53 | D10: =ROUND([2]ResourceLevelConfig!$G10*0.05,0) -> 53 | E10: =ROUND([2]ResourceLevelConfig!$H10*0.05,0) -> 53 | F10: 206
A11: 7 | B11: =ROUND([2]ResourceLevelConfig!$E11*0.05,0) -> 53 | C11: =ROUND([2]ResourceLevelConfig!$C11*0.05,0) -> 53 | D11: =ROUND([2]ResourceLevelConfig!$G11*0.05,0) -> 53 | E11: =ROUND([2]ResourceLevelConfig!$H11*0.05,0) -> 53 | F11: 207
A12: 8 | B12: =ROUND([2]ResourceLevelConfig!$E12*0.05,0) -> 54 | C12: =ROUND([2]ResourceLevelConfig!$C12*0.05,0) -> 54 | D12: =ROUND([2]ResourceLevelConfig!$G12*0.05,0) -> 54 | E12: =ROUND([2]ResourceLevelConfig!$H12*0.05,0) -> 54 | F12: 208
A13: 9 | B13: =ROUND([2]ResourceLevelConfig!$E13*0.05,0) -> 54 | C13: =ROUND([2]ResourceLevelConfig!$C13*0.05,0) -> 54 | D13: =ROUND([2]ResourceLevelConfig!$G13*0.05,0) -> 54 | E13: =ROUND([2]ResourceLevelConfig!$H13*0.05,0) -> 54 | F13: 209
A14: 10 | B14: =ROUND([2]ResourceLevelConfig!$E14*0.05,0) -> 55 | C14: =ROUND([2]ResourceLevelConfig!$C14*0.05,0) -> 55 | D14: =ROUND([2]ResourceLevelConfig!$G14*0.05,0) -> 55 | E14: =ROUND([2]ResourceLevelConfig!$H14*0.05,0) -> 55 | F14: 210
A15: 11 | B15: =ROUND([2]ResourceLevelConfig!$E15*0.05,0) -> 55 | C15: =ROUND([2]ResourceLevelConfig!$C15*0.05,0) -> 55 | D15: =ROUND([2]ResourceLevelConfig!$G15*0.05,0) -> 55 | E15: =ROUND([2]ResourceLevelConfig!$H15*0.05,0) -> 55 | F15: 211
A16: 12 | B16: =ROUND([2]ResourceLevelConfig!$E16*0.05,0) -> 56 | C16: =ROUND([2]ResourceLevelConfig!$C16*0.05,0) -> 56 | D16: =ROUND([2]ResourceLevelConfig!$G16*0.05,0) -> 56 | E16: =ROUND([2]ResourceLevelConfig!$H16*0.05,0) -> 56 | F16: 212
A17: 13 | B17: =ROUND([2]ResourceLevelConfig!$E17*0.05,0) -> 56 | C17: =ROUND([2]ResourceLevelConfig!$C17*0.05,0) -> 56 | D17: =ROUND([2]ResourceLevelConfig!$G17*0.05,0) -> 56 | E17: =ROUND([2]ResourceLevelConfig!$H17*0.05,0) -> 56 | F17: 213
A18: 14 | B18: =ROUND([2]ResourceLevelConfig!$E18*0.05,0) -> 57 | C18: =ROUND([2]ResourceLevelConfig!$C18*0.05,0) -> 57 | D18: =ROUND([2]ResourceLevelConfig!$G18*0.05,0) -> 57 | E18: =ROUND([2]ResourceLevelConfig!$H18*0.05,0) -> 57 | F18: 214
A19: 15 | B19: =ROUND([2]ResourceLevelConfig!$E19*0.05,0) -> 57 | C19: =ROUND([2]ResourceLevelConfig!$C19*0.05,0) -> 57 | D19: =ROUND([2]ResourceLevelConfig!$G19*0.05,0) -> 57 | E19: =ROUND([2]ResourceLevelConfig!$H19*0.05,0) -> 57 | F19: 215
A20: 16 | B20: =ROUND([2]ResourceLevelConfig!$E20*0.05,0) -> 58 | C20: =ROUND([2]ResourceLevelConfig!$C20*0.05,0) -> 58 | D20: =ROUND([2]ResourceLevelConfig!$G20*0.05,0) -> 58 | E20: =ROUND([2]ResourceLevelConfig!$H20*0.05,0) -> 58 | F20: 216
A21: 17 | B21: =ROUND([2]ResourceLevelConfig!$E21*0.05,0) -> 58 | C21: =ROUND([2]ResourceLevelConfig!$C21*0.05,0) -> 58 | D21: =ROUND([2]ResourceLevelConfig!$G21*0.05,0) -> 58 | E21: =ROUND([2]ResourceLevelConfig!$H21*0.05,0) -> 58 | F21: 217
A22: 18 | B22: =ROUND([2]ResourceLevelConfig!$E22*0.05,0) -> 59 | C22: =ROUND([2]ResourceLevelConfig!$C22*0.05,0) -> 59 | D22: =ROUND([2]ResourceLevelConfig!$G22*0.05,0) -> 59 | E22: =ROUND([2]ResourceLevelConfig!$H22*0.05,0) -> 59 | F22: 218
A23: 19 | B23: =ROUND([2]ResourceLevelConfig!$E23*0.05,0) -> 59 | C23: =ROUND([2]ResourceLevelConfig!$C23*0.05,0) -> 59 | D23: =ROUND([2]ResourceLevelConfig!$G23*0.05,0) -> 59 | E23: =ROUND([2]ResourceLevelConfig!$H23*0.05,0) -> 59 | F23: 219
A24: 20 | B24: =ROUND([2]ResourceLevelConfig!$E24*0.05,0) -> 60 | C24: =ROUND([2]ResourceLevelConfig!$C24*0.05,0) -> 60 | D24: =ROUND([2]ResourceLevelConfig!$G24*0.05,0) -> 60 | E24: =ROUND([2]ResourceLevelConfig!$H24*0.05,0) -> 60 | F24: 220
A25: 21 | B25: =ROUND([2]ResourceLevelConfig!$E25*0.05,0) -> 60 | C25: =ROUND([2]ResourceLevelConfig!$C25*0.05,0) -> 60 | D25: =ROUND([2]ResourceLevelConfig!$G25*0.05,0) -> 60 | E25: =ROUND([2]ResourceLevelConfig!$H25*0.05,0) -> 60 | F25: 221
A26: 22 | B26: =ROUND([2]ResourceLevelConfig!$E26*0.05,0) -> 61 | C26: =ROUND([2]ResourceLevelConfig!$C26*0.05,0) -> 61 | D26: =ROUND([2]ResourceLevelConfig!$G26*0.05,0) -> 61 | E26: =ROUND([2]ResourceLevelConfig!$H26*0.05,0) -> 61 | F26: 222
A27: 23 | B27: =ROUND([2]ResourceLevelConfig!$E27*0.05,0) -> 61 | C27: =ROUND([2]ResourceLevelConfig!$C27*0.05,0) -> 61 | D27: =ROUND([2]ResourceLevelConfig!$G27*0.05,0) -> 61 | E27: =ROUND([2]ResourceLevelConfig!$H27*0.05,0) -> 61 | F27: 223
A28: 24 | B28: =ROUND([2]ResourceLevelConfig!$E28*0.05,0) -> 62 | C28: =ROUND([2]ResourceLevelConfig!$C28*0.05,0) -> 62 | D28: =ROUND([2]ResourceLevelConfig!$G28*0.05,0) -> 62 | E28: =ROUND([2]ResourceLevelConfig!$H28*0.05,0) -> 62 | F28: 224
A29: 25 | B29: =ROUND([2]ResourceLevelConfig!$E29*0.05,0) -> 62 | C29: =ROUND([2]ResourceLevelConfig!$C29*0.05,0) -> 62 | D29: =ROUND([2]ResourceLevelConfig!$G29*0.05,0) -> 62 | E29: =ROUND([2]ResourceLevelConfig!$H29*0.05,0) -> 62 | F29: 225
A30: 26 | B30: =ROUND([2]ResourceLevelConfig!$E30*0.05,0) -> 63 | C30: =ROUND([2]ResourceLevelConfig!$C30*0.05,0) -> 63 | D30: =ROUND([2]ResourceLevelConfig!$G30*0.05,0) -> 63 | E30: =ROUND([2]ResourceLevelConfig!$H30*0.05,0) -> 63 | F30: 226
A31: 27 | B31: =ROUND([2]ResourceLevelConfig!$E31*0.05,0) -> 63 | C31: =ROUND([2]ResourceLevelConfig!$C31*0.05,0) -> 63 | D31: =ROUND([2]ResourceLevelConfig!$G31*0.05,0) -> 63 | E31: =ROUND([2]ResourceLevelConfig!$H31*0.05,0) -> 63 | F31: 227
A32: 28 | B32: =ROUND([2]ResourceLevelConfig!$E32*0.05,0) -> 64 | C32: =ROUND([2]ResourceLevelConfig!$C32*0.05,0) -> 64 | D32: =ROUND([2]ResourceLevelConfig!$G32*0.05,0) -> 64 | E32: =ROUND([2]ResourceLevelConfig!$H32*0.05,0) -> 64 | F32: 228
A33: 29 | B33: =ROUND([2]ResourceLevelConfig!$E33*0.05,0) -> 64 | C33: =ROUND([2]ResourceLevelConfig!$C33*0.05,0) -> 64 | D33: =ROUND([2]ResourceLevelConfig!$G33*0.05,0) -> 64 | E33: =ROUND([2]ResourceLevelConfig!$H33*0.05,0) -> 64 | F33: 229
A34: 30 | B34: =ROUND([2]ResourceLevelConfig!$E34*0.05,0) -> 65 | C34: =ROUND([2]ResourceLevelConfig!$C34*0.05,0) -> 65 | D34: =ROUND([2]ResourceLevelConfig!$G34*0.05,0) -> 65 | E34: =ROUND([2]ResourceLevelConfig!$H34*0.05,0) -> 65 | F34: 230
A35: 31 | B35: =ROUND([2]ResourceLevelConfig!$E35*0.05,0) -> 65 | C35: =ROUND([2]ResourceLevelConfig!$C35*0.05,0) -> 65 | D35: =ROUND([2]ResourceLevelConfig!$G35*0.05,0) -> 65 | E35: =ROUND([2]ResourceLevelConfig!$H35*0.05,0) -> 65 | F35: 231
A36: 32 | B36: =ROUND([2]ResourceLevelConfig!$E36*0.05,0) -> 66 | C36: =ROUND([2]ResourceLevelConfig!$C36*0.05,0) -> 66 | D36: =ROUND([2]ResourceLevelConfig!$G36*0.05,0) -> 66 | E36: =ROUND([2]ResourceLevelConfig!$H36*0.05,0) -> 66 | F36: 232
A37: 33 | B37: =ROUND([2]ResourceLevelConfig!$E37*0.05,0) -> 66 | C37: =ROUND([2]ResourceLevelConfig!$C37*0.05,0) -> 66 | D37: =ROUND([2]ResourceLevelConfig!$G37*0.05,0) -> 66 | E37: =ROUND([2]ResourceLevelConfig!$H37*0.05,0) -> 66 | F37: 233
A38: 34 | B38: =ROUND([2]ResourceLevelConfig!$E38*0.05,0) -> 67 | C38: =ROUND([2]ResourceLevelConfig!$C38*0.05,0) -> 67 | D38: =ROUND([2]ResourceLevelConfig!$G38*0.05,0) -> 67 | E38: =ROUND([2]ResourceLevelConfig!$H38*0.05,0) -> 67 | F38: 234
A39: 35 | B39: =ROUND([2]ResourceLevelConfig!$E39*0.05,0) -> 67 | C39: =ROUND([2]ResourceLevelConfig!$C39*0.05,0) -> 67 | D39: =ROUND([2]ResourceLevelConfig!$G39*0.05,0) -> 67 | E39: =ROUND([2]ResourceLevelConfig!$H39*0.05,0) -> 67 | F39: 235
A40: 36 | B40: =ROUND([2]ResourceLevelConfig!$E40*0.05,0) -> 68 | C40: =ROUND([2]ResourceLevelConfig!$C40*0.05,0) -> 68 | D40: =ROUND([2]ResourceLevelConfig!$G40*0.05,0) -> 68 | E40: =ROUND([2]ResourceLevelConfig!$H40*0.05,0) -> 68 | F40: 236
A41: 37 | B41: =ROUND([2]ResourceLevelConfig!$E41*0.05,0) -> 68 | C41: =ROUND([2]ResourceLevelConfig!$C41*0.05,0) -> 68 | D41: =ROUND([2]ResourceLevelConfig!$G41*0.05,0) -> 68 | E41: =ROUND([2]ResourceLevelConfig!$H41*0.05,0) -> 68 | F41: 237
A42: 38 | B42: =ROUND([2]ResourceLevelConfig!$E42*0.05,0) -> 69 | C42: =ROUND([2]ResourceLevelConfig!$C42*0.05,0) -> 69 | D42: =ROUND([2]ResourceLevelConfig!$G42*0.05,0) -> 69 | E42: =ROUND([2]ResourceLevelConfig!$H42*0.05,0) -> 69 | F42: 238
A43: 39 | B43: =ROUND([2]ResourceLevelConfig!$E43*0.05,0) -> 69 | C43: =ROUND([2]ResourceLevelConfig!$C43*0.05,0) -> 69 | D43: =ROUND([2]ResourceLevelConfig!$G43*0.05,0) -> 69 | E43: =ROUND([2]ResourceLevelConfig!$H43*0.05,0) -> 69 | F43: 239
A44: 40 | B44: =ROUND([2]ResourceLevelConfig!$E44*0.05,0) -> 70 | C44: =ROUND([2]ResourceLevelConfig!$C44*0.05,0) -> 70 | D44: =ROUND([2]ResourceLevelConfig!$G44*0.05,0) -> 70 | E44: =ROUND([2]ResourceLevelConfig!$H44*0.05,0) -> 70 | F44: 240
A45: 41 | B45: =ROUND([2]ResourceLevelConfig!$E45*0.05,0) -> 70 | C45: =ROUND([2]ResourceLevelConfig!$C45*0.05,0) -> 70 | D45: =ROUND([2]ResourceLevelConfig!$G45*0.05,0) -> 70 | E45: =ROUND([2]ResourceLevelConfig!$H45*0.05,0) -> 70 | F45: 241
A46: 42 | B46: =ROUND([2]ResourceLevelConfig!$E46*0.05,0) -> 71 | C46: =ROUND([2]ResourceLevelConfig!$C46*0.05,0) -> 71 | D46: =ROUND([2]ResourceLevelConfig!$G46*0.05,0) -> 71 | E46: =ROUND([2]ResourceLevelConfig!$H46*0.05,0) -> 71 | F46: 242
A47: 43 | B47: =ROUND([2]ResourceLevelConfig!$E47*0.05,0) -> 71 | C47: =ROUND([2]ResourceLevelConfig!$C47*0.05,0) -> 71 | D47: =ROUND([2]ResourceLevelConfig!$G47*0.05,0) -> 71 | E47: =ROUND([2]ResourceLevelConfig!$H47*0.05,0) -> 71 | F47: 243
A48: 44 | B48: =ROUND([2]ResourceLevelConfig!$E48*0.05,0) -> 72 | C48: =ROUND([2]ResourceLevelConfig!$C48*0.05,0) -> 72 | D48: =ROUND([2]ResourceLevelConfig!$G48*0.05,0) -> 72 | E48: =ROUND([2]ResourceLevelConfig!$H48*0.05,0) -> 72 | F48: 244
A49: 45 | B49: =ROUND([2]ResourceLevelConfig!$E49*0.05,0) -> 72 | C49: =ROUND([2]ResourceLevelConfig!$C49*0.05,0) -> 72 | D49: =ROUND([2]ResourceLevelConfig!$G49*0.05,0) -> 72 | E49: =ROUND([2]ResourceLevelConfig!$H49*0.05,0) -> 72 | F49: 245
A50: 46 | B50: =ROUND([2]ResourceLevelConfig!$E50*0.05,0) -> 73 | C50: =ROUND([2]ResourceLevelConfig!$C50*0.05,0) -> 73 | D50: =ROUND([2]ResourceLevelConfig!$G50*0.05,0) -> 73 | E50: =ROUND([2]ResourceLevelConfig!$H50*0.05,0) -> 73 | F50: 246
A51: 47 | B51: =ROUND([2]ResourceLevelConfig!$E51*0.05,0) -> 73 | C51: =ROUND([2]ResourceLevelConfig!$C51*0.05,0) -> 73 | D51: =ROUND([2]ResourceLevelConfig!$G51*0.05,0) -> 73 | E51: =ROUND([2]ResourceLevelConfig!$H51*0.05,0) -> 73 | F51: 247
A52: 48 | B52: =ROUND([2]ResourceLevelConfig!$E52*0.05,0) -> 74 | C52: =ROUND([2]ResourceLevelConfig!$C52*0.05,0) -> 74 | D52: =ROUND([2]ResourceLevelConfig!$G52*0.05,0) -> 74 | E52: =ROUND([2]ResourceLevelConfig!$H52*0.05,0) -> 74 | F52: 248
A53: 49 | B53: =ROUND([2]ResourceLevelConfig!$E53*0.05,0) -> 74 | C53: =ROUND([2]ResourceLevelConfig!$C53*0.05,0) -> 74 | D53: =ROUND([2]ResourceLevelConfig!$G53*0.05,0) -> 74 | E53: =ROUND([2]ResourceLevelConfig!$H53*0.05,0) -> 74 | F53: 249
A54: 50 | B54: =ROUND([2]ResourceLevelConfig!$E54*0.05,0) -> 75 | C54: =ROUND([2]ResourceLevelConfig!$C54*0.05,0) -> 75 | D54: =ROUND([2]ResourceLevelConfig!$G54*0.05,0) -> 75 | E54: =ROUND([2]ResourceLevelConfig!$H54*0.05,0) -> 75 | F54: 250
A55: 51 | B55: =ROUND([2]ResourceLevelConfig!$E55*0.05,0) -> 75 | C55: =ROUND([2]ResourceLevelConfig!$C55*0.05,0) -> 75 | D55: =ROUND([2]ResourceLevelConfig!$G55*0.05,0) -> 75 | E55: =ROUND([2]ResourceLevelConfig!$H55*0.05,0) -> 75 | F55: 251
A56: 52 | B56: =ROUND([2]ResourceLevelConfig!$E56*0.05,0) -> 76 | C56: =ROUND([2]ResourceLevelConfig!$C56*0.05,0) -> 76 | D56: =ROUND([2]ResourceLevelConfig!$G56*0.05,0) -> 76 | E56: =ROUND([2]ResourceLevelConfig!$H56*0.05,0) -> 76 | F56: 252
A57: 53 | B57: =ROUND([2]ResourceLevelConfig!$E57*0.05,0) -> 76 | C57: =ROUND([2]ResourceLevelConfig!$C57*0.05,0) -> 76 | D57: =ROUND([2]ResourceLevelConfig!$G57*0.05,0) -> 76 | E57: =ROUND([2]ResourceLevelConfig!$H57*0.05,0) -> 76 | F57: 253
A58: 54 | B58: =ROUND([2]ResourceLevelConfig!$E58*0.05,0) -> 77 | C58: =ROUND([2]ResourceLevelConfig!$C58*0.05,0) -> 77 | D58: =ROUND([2]ResourceLevelConfig!$G58*0.05,0) -> 77 | E58: =ROUND([2]ResourceLevelConfig!$H58*0.05,0) -> 77 | F58: 254
A59: 55 | B59: =ROUND([2]ResourceLevelConfig!$E59*0.05,0) -> 77 | C59: =ROUND([2]ResourceLevelConfig!$C59*0.05,0) -> 77 | D59: =ROUND([2]ResourceLevelConfig!$G59*0.05,0) -> 77 | E59: =ROUND([2]ResourceLevelConfig!$H59*0.05,0) -> 77 | F59: 255
A60: 56 | B60: =ROUND([2]ResourceLevelConfig!$E60*0.05,0) -> 78 | C60: =ROUND([2]ResourceLevelConfig!$C60*0.05,0) -> 78 | D60: =ROUND([2]ResourceLevelConfig!$G60*0.05,0) -> 78 | E60: =ROUND([2]ResourceLevelConfig!$H60*0.05,0) -> 78 | F60: 256
A61: 57 | B61: =ROUND([2]ResourceLevelConfig!$E61*0.05,0) -> 78 | C61: =ROUND([2]ResourceLevelConfig!$C61*0.05,0) -> 78 | D61: =ROUND([2]ResourceLevelConfig!$G61*0.05,0) -> 78 | E61: =ROUND([2]ResourceLevelConfig!$H61*0.05,0) -> 78 | F61: 257
A62: 58 | B62: =ROUND([2]ResourceLevelConfig!$E62*0.05,0) -> 79 | C62: =ROUND([2]ResourceLevelConfig!$C62*0.05,0) -> 79 | D62: =ROUND([2]ResourceLevelConfig!$G62*0.05,0) -> 79 | E62: =ROUND([2]ResourceLevelConfig!$H62*0.05,0) -> 79 | F62: 258
A63: 59 | B63: =ROUND([2]ResourceLevelConfig!$E63*0.05,0) -> 79 | C63: =ROUND([2]ResourceLevelConfig!$C63*0.05,0) -> 79 | D63: =ROUND([2]ResourceLevelConfig!$G63*0.05,0) -> 79 | E63: =ROUND([2]ResourceLevelConfig!$H63*0.05,0) -> 79 | F63: 259
A64: 60 | B64: =ROUND([2]ResourceLevelConfig!$E64*0.05,0) -> 80 | C64: =ROUND([2]ResourceLevelConfig!$C64*0.05,0) -> 80 | D64: =ROUND([2]ResourceLevelConfig!$G64*0.05,0) -> 80 | E64: =ROUND([2]ResourceLevelConfig!$H64*0.05,0) -> 80 | F64: 260
A65: 61 | B65: =ROUND([2]ResourceLevelConfig!$E65*0.05,0) -> 80 | C65: =ROUND([2]ResourceLevelConfig!$C65*0.05,0) -> 80 | D65: =ROUND([2]ResourceLevelConfig!$G65*0.05,0) -> 80 | E65: =ROUND([2]ResourceLevelConfig!$H65*0.05,0) -> 80 | F65: 261
A66: 62 | B66: =ROUND([2]ResourceLevelConfig!$E66*0.05,0) -> 81 | C66: =ROUND([2]ResourceLevelConfig!$C66*0.05,0) -> 81 | D66: =ROUND([2]ResourceLevelConfig!$G66*0.05,0) -> 81 | E66: =ROUND([2]ResourceLevelConfig!$H66*0.05,0) -> 81 | F66: 262
A67: 63 | B67: =ROUND([2]ResourceLevelConfig!$E67*0.05,0) -> 81 | C67: =ROUND([2]ResourceLevelConfig!$C67*0.05,0) -> 81 | D67: =ROUND([2]ResourceLevelConfig!$G67*0.05,0) -> 81 | E67: =ROUND([2]ResourceLevelConfig!$H67*0.05,0) -> 81 | F67: 263
A68: 64 | B68: =ROUND([2]ResourceLevelConfig!$E68*0.05,0) -> 82 | C68: =ROUND([2]ResourceLevelConfig!$C68*0.05,0) -> 82 | D68: =ROUND([2]ResourceLevelConfig!$G68*0.05,0) -> 82 | E68: =ROUND([2]ResourceLevelConfig!$H68*0.05,0) -> 82 | F68: 264
A69: 65 | B69: =ROUND([2]ResourceLevelConfig!$E69*0.05,0) -> 82 | C69: =ROUND([2]ResourceLevelConfig!$C69*0.05,0) -> 82 | D69: =ROUND([2]ResourceLevelConfig!$G69*0.05,0) -> 82 | E69: =ROUND([2]ResourceLevelConfig!$H69*0.05,0) -> 82 | F69: 265
A70: 66 | B70: =ROUND([2]ResourceLevelConfig!$E70*0.05,0) -> 83 | C70: =ROUND([2]ResourceLevelConfig!$C70*0.05,0) -> 83 | D70: =ROUND([2]ResourceLevelConfig!$G70*0.05,0) -> 83 | E70: =ROUND([2]ResourceLevelConfig!$H70*0.05,0) -> 83 | F70: 266
A71: 67 | B71: =ROUND([2]ResourceLevelConfig!$E71*0.05,0) -> 83 | C71: =ROUND([2]ResourceLevelConfig!$C71*0.05,0) -> 83 | D71: =ROUND([2]ResourceLevelConfig!$G71*0.05,0) -> 83 | E71: =ROUND([2]ResourceLevelConfig!$H71*0.05,0) -> 83 | F71: 267
A72: 68 | B72: =ROUND([2]ResourceLevelConfig!$E72*0.05,0) -> 84 | C72: =ROUND([2]ResourceLevelConfig!$C72*0.05,0) -> 84 | D72: =ROUND([2]ResourceLevelConfig!$G72*0.05,0) -> 84 | E72: =ROUND([2]ResourceLevelConfig!$H72*0.05,0) -> 84 | F72: 268
A73: 69 | B73: =ROUND([2]ResourceLevelConfig!$E73*0.05,0) -> 84 | C73: =ROUND([2]ResourceLevelConfig!$C73*0.05,0) -> 84 | D73: =ROUND([2]ResourceLevelConfig!$G73*0.05,0) -> 84 | E73: =ROUND([2]ResourceLevelConfig!$H73*0.05,0) -> 84 | F73: 269
A74: 70 | B74: =ROUND([2]ResourceLevelConfig!$E74*0.05,0) -> 85 | C74: =ROUND([2]ResourceLevelConfig!$C74*0.05,0) -> 85 | D74: =ROUND([2]ResourceLevelConfig!$G74*0.05,0) -> 85 | E74: =ROUND([2]ResourceLevelConfig!$H74*0.05,0) -> 85 | F74: 270
A75: 71 | B75: =ROUND([2]ResourceLevelConfig!$E75*0.05,0) -> 85 | C75: =ROUND([2]ResourceLevelConfig!$C75*0.05,0) -> 85 | D75: =ROUND([2]ResourceLevelConfig!$G75*0.05,0) -> 85 | E75: =ROUND([2]ResourceLevelConfig!$H75*0.05,0) -> 85 | F75: 271
A76: 72 | B76: =ROUND([2]ResourceLevelConfig!$E76*0.05,0) -> 86 | C76: =ROUND([2]ResourceLevelConfig!$C76*0.05,0) -> 86 | D76: =ROUND([2]ResourceLevelConfig!$G76*0.05,0) -> 86 | E76: =ROUND([2]ResourceLevelConfig!$H76*0.05,0) -> 86 | F76: 272
A77: 73 | B77: =ROUND([2]ResourceLevelConfig!$E77*0.05,0) -> 86 | C77: =ROUND([2]ResourceLevelConfig!$C77*0.05,0) -> 86 | D77: =ROUND([2]ResourceLevelConfig!$G77*0.05,0) -> 86 | E77: =ROUND([2]ResourceLevelConfig!$H77*0.05,0) -> 86 | F77: 273
A78: 74 | B78: =ROUND([2]ResourceLevelConfig!$E78*0.05,0) -> 87 | C78: =ROUND([2]ResourceLevelConfig!$C78*0.05,0) -> 87 | D78: =ROUND([2]ResourceLevelConfig!$G78*0.05,0) -> 87 | E78: =ROUND([2]ResourceLevelConfig!$H78*0.05,0) -> 87 | F78: 274
A79: 75 | B79: =ROUND([2]ResourceLevelConfig!$E79*0.05,0) -> 87 | C79: =ROUND([2]ResourceLevelConfig!$C79*0.05,0) -> 87 | D79: =ROUND([2]ResourceLevelConfig!$G79*0.05,0) -> 87 | E79: =ROUND([2]ResourceLevelConfig!$H79*0.05,0) -> 87 | F79: 275
A80: 76 | B80: =ROUND([2]ResourceLevelConfig!$E80*0.05,0) -> 88 | C80: =ROUND([2]ResourceLevelConfig!$C80*0.05,0) -> 88 | D80: =ROUND([2]ResourceLevelConfig!$G80*0.05,0) -> 88 | E80: =ROUND([2]ResourceLevelConfig!$H80*0.05,0) -> 88 | F80: 276
A81: 77 | B81: =ROUND([2]ResourceLevelConfig!$E81*0.05,0) -> 88 | C81: =ROUND([2]ResourceLevelConfig!$C81*0.05,0) -> 88 | D81: =ROUND([2]ResourceLevelConfig!$G81*0.05,0) -> 88 | E81: =ROUND([2]ResourceLevelConfig!$H81*0.05,0) -> 88 | F81: 277
A82: 78 | B82: =ROUND([2]ResourceLevelConfig!$E82*0.05,0) -> 89 | C82: =ROUND([2]ResourceLevelConfig!$C82*0.05,0) -> 89 | D82: =ROUND([2]ResourceLevelConfig!$G82*0.05,0) -> 89 | E82: =ROUND([2]ResourceLevelConfig!$H82*0.05,0) -> 89 | F82: 278
A83: 79 | B83: =ROUND([2]ResourceLevelConfig!$E83*0.05,0) -> 89 | C83: =ROUND([2]ResourceLevelConfig!$C83*0.05,0) -> 89 | D83: =ROUND([2]ResourceLevelConfig!$G83*0.05,0) -> 89 | E83: =ROUND([2]ResourceLevelConfig!$H83*0.05,0) -> 89 | F83: 279
A84: 80 | B84: =ROUND([2]ResourceLevelConfig!$E84*0.05,0) -> 90 | C84: =ROUND([2]ResourceLevelConfig!$C84*0.05,0) -> 90 | D84: =ROUND([2]ResourceLevelConfig!$G84*0.05,0) -> 90 | E84: =ROUND([2]ResourceLevelConfig!$H84*0.05,0) -> 90 | F84: 280
A85: 81 | B85: =ROUND([2]ResourceLevelConfig!$E85*0.05,0) -> 90 | C85: =ROUND([2]ResourceLevelConfig!$C85*0.05,0) -> 90 | D85: =ROUND([2]ResourceLevelConfig!$G85*0.05,0) -> 90 | E85: =ROUND([2]ResourceLevelConfig!$H85*0.05,0) -> 90 | F85: 281
A86: 82 | B86: =ROUND([2]ResourceLevelConfig!$E86*0.05,0) -> 91 | C86: =ROUND([2]ResourceLevelConfig!$C86*0.05,0) -> 91 | D86: =ROUND([2]ResourceLevelConfig!$G86*0.05,0) -> 91 | E86: =ROUND([2]ResourceLevelConfig!$H86*0.05,0) -> 91 | F86: 282
A87: 83 | B87: =ROUND([2]ResourceLevelConfig!$E87*0.05,0) -> 91 | C87: =ROUND([2]ResourceLevelConfig!$C87*0.05,0) -> 91 | D87: =ROUND([2]ResourceLevelConfig!$G87*0.05,0) -> 91 | E87: =ROUND([2]ResourceLevelConfig!$H87*0.05,0) -> 91 | F87: 283
A88: 84 | B88: =ROUND([2]ResourceLevelConfig!$E88*0.05,0) -> 92 | C88: =ROUND([2]ResourceLevelConfig!$C88*0.05,0) -> 92 | D88: =ROUND([2]ResourceLevelConfig!$G88*0.05,0) -> 92 | E88: =ROUND([2]ResourceLevelConfig!$H88*0.05,0) -> 92 | F88: 284
A89: 85 | B89: =ROUND([2]ResourceLevelConfig!$E89*0.05,0) -> 92 | C89: =ROUND([2]ResourceLevelConfig!$C89*0.05,0) -> 92 | D89: =ROUND([2]ResourceLevelConfig!$G89*0.05,0) -> 92 | E89: =ROUND([2]ResourceLevelConfig!$H89*0.05,0) -> 92 | F89: 285
A90: 86 | B90: =ROUND([2]ResourceLevelConfig!$E90*0.05,0) -> 93 | C90: =ROUND([2]ResourceLevelConfig!$C90*0.05,0) -> 93 | D90: =ROUND([2]ResourceLevelConfig!$G90*0.05,0) -> 93 | E90: =ROUND([2]ResourceLevelConfig!$H90*0.05,0) -> 93 | F90: 286
A91: 87 | B91: =ROUND([2]ResourceLevelConfig!$E91*0.05,0) -> 93 | C91: =ROUND([2]ResourceLevelConfig!$C91*0.05,0) -> 93 | D91: =ROUND([2]ResourceLevelConfig!$G91*0.05,0) -> 93 | E91: =ROUND([2]ResourceLevelConfig!$H91*0.05,0) -> 93 | F91: 287
A92: 88 | B92: =ROUND([2]ResourceLevelConfig!$E92*0.05,0) -> 94 | C92: =ROUND([2]ResourceLevelConfig!$C92*0.05,0) -> 94 | D92: =ROUND([2]ResourceLevelConfig!$G92*0.05,0) -> 94 | E92: =ROUND([2]ResourceLevelConfig!$H92*0.05,0) -> 94 | F92: 288
A93: 89 | B93: =ROUND([2]ResourceLevelConfig!$E93*0.05,0) -> 94 | C93: =ROUND([2]ResourceLevelConfig!$C93*0.05,0) -> 94 | D93: =ROUND([2]ResourceLevelConfig!$G93*0.05,0) -> 94 | E93: =ROUND([2]ResourceLevelConfig!$H93*0.05,0) -> 94 | F93: 289
A94: 90 | B94: =ROUND([2]ResourceLevelConfig!$E94*0.05,0) -> 95 | C94: =ROUND([2]ResourceLevelConfig!$C94*0.05,0) -> 95 | D94: =ROUND([2]ResourceLevelConfig!$G94*0.05,0) -> 95 | E94: =ROUND([2]ResourceLevelConfig!$H94*0.05,0) -> 95 | F94: 290
A95: 91 | B95: =ROUND([2]ResourceLevelConfig!$E95*0.05,0) -> 95 | C95: =ROUND([2]ResourceLevelConfig!$C95*0.05,0) -> 95 | D95: =ROUND([2]ResourceLevelConfig!$G95*0.05,0) -> 95 | E95: =ROUND([2]ResourceLevelConfig!$H95*0.05,0) -> 95 | F95: 291
A96: 92 | B96: =ROUND([2]ResourceLevelConfig!$E96*0.05,0) -> 96 | C96: =ROUND([2]ResourceLevelConfig!$C96*0.05,0) -> 96 | D96: =ROUND([2]ResourceLevelConfig!$G96*0.05,0) -> 96 | E96: =ROUND([2]ResourceLevelConfig!$H96*0.05,0) -> 96 | F96: 292
A97: 93 | B97: =ROUND([2]ResourceLevelConfig!$E97*0.05,0) -> 96 | C97: =ROUND([2]ResourceLevelConfig!$C97*0.05,0) -> 96 | D97: =ROUND([2]ResourceLevelConfig!$G97*0.05,0) -> 96 | E97: =ROUND([2]ResourceLevelConfig!$H97*0.05,0) -> 96 | F97: 293
A98: 94 | B98: =ROUND([2]ResourceLevelConfig!$E98*0.05,0) -> 97 | C98: =ROUND([2]ResourceLevelConfig!$C98*0.05,0) -> 97 | D98: =ROUND([2]ResourceLevelConfig!$G98*0.05,0) -> 97 | E98: =ROUND([2]ResourceLevelConfig!$H98*0.05,0) -> 97 | F98: 294
A99: 95 | B99: =ROUND([2]ResourceLevelConfig!$E99*0.05,0) -> 97 | C99: =ROUND([2]ResourceLevelConfig!$C99*0.05,0) -> 97 | D99: =ROUND([2]ResourceLevelConfig!$G99*0.05,0) -> 97 | E99: =ROUND([2]ResourceLevelConfig!$H99*0.05,0) -> 97 | F99: 295
A100: 96 | B100: =ROUND([2]ResourceLevelConfig!$E100*0.05,0) -> 98 | C100: =ROUND([2]ResourceLevelConfig!$C100*0.05,0) -> 98 | D100: =ROUND([2]ResourceLevelConfig!$G100*0.05,0) -> 98 | E100: =ROUND([2]ResourceLevelConfig!$H100*0.05,0) -> 98 | F100: 296
A101: 97 | B101: =ROUND([2]ResourceLevelConfig!$E101*0.05,0) -> 98 | C101: =ROUND([2]ResourceLevelConfig!$C101*0.05,0) -> 98 | D101: =ROUND([2]ResourceLevelConfig!$G101*0.05,0) -> 98 | E101: =ROUND([2]ResourceLevelConfig!$H101*0.05,0) -> 98 | F101: 297
A102: 98 | B102: =ROUND([2]ResourceLevelConfig!$E102*0.05,0) -> 99 | C102: =ROUND([2]ResourceLevelConfig!$C102*0.05,0) -> 99 | D102: =ROUND([2]ResourceLevelConfig!$G102*0.05,0) -> 99 | E102: =ROUND([2]ResourceLevelConfig!$H102*0.05,0) -> 99 | F102: 298
A103: 99 | B103: =ROUND([2]ResourceLevelConfig!$E103*0.05,0) -> 99 | C103: =ROUND([2]ResourceLevelConfig!$C103*0.05,0) -> 99 | D103: =ROUND([2]ResourceLevelConfig!$G103*0.05,0) -> 99 | E103: =ROUND([2]ResourceLevelConfig!$H103*0.05,0) -> 99 | F103: 299
A104: 100 | B104: =ROUND([2]ResourceLevelConfig!$E104*0.05,0) -> 100 | C104: =ROUND([2]ResourceLevelConfig!$C104*0.05,0) -> 100 | D104: =ROUND([2]ResourceLevelConfig!$G104*0.05,0) -> 100 | E104: =ROUND([2]ResourceLevelConfig!$H104*0.05,0) -> 100 | F104: 300
A105: 101 | B105: =ROUND([2]ResourceLevelConfig!$E105*0.05,0) -> 100 | C105: =ROUND([2]ResourceLevelConfig!$C105*0.05,0) -> 100 | D105: =ROUND([2]ResourceLevelConfig!$G105*0.05,0) -> 100 | E105: =ROUND([2]ResourceLevelConfig!$H105*0.05,0) -> 100 | F105: 301
A106: 102 | B106: =ROUND([2]ResourceLevelConfig!$E106*0.05,0) -> 101 | C106: =ROUND([2]ResourceLevelConfig!$C106*0.05,0) -> 101 | D106: =ROUND([2]ResourceLevelConfig!$G106*0.05,0) -> 101 | E106: =ROUND([2]ResourceLevelConfig!$H106*0.05,0) -> 101 | F106: 302
A107: 103 | B107: =ROUND([2]ResourceLevelConfig!$E107*0.05,0) -> 101 | C107: =ROUND([2]ResourceLevelConfig!$C107*0.05,0) -> 101 | D107: =ROUND([2]ResourceLevelConfig!$G107*0.05,0) -> 101 | E107: =ROUND([2]ResourceLevelConfig!$H107*0.05,0) -> 101 | F107: 303
A108: 104 | B108: =ROUND([2]ResourceLevelConfig!$E108*0.05,0) -> 102 | C108: =ROUND([2]ResourceLevelConfig!$C108*0.05,0) -> 102 | D108: =ROUND([2]ResourceLevelConfig!$G108*0.05,0) -> 102 | E108: =ROUND([2]ResourceLevelConfig!$H108*0.05,0) -> 102 | F108: 304
A109: 105 | B109: =ROUND([2]ResourceLevelConfig!$E109*0.05,0) -> 102 | C109: =ROUND([2]ResourceLevelConfig!$C109*0.05,0) -> 102 | D109: =ROUND([2]ResourceLevelConfig!$G109*0.05,0) -> 102 | E109: =ROUND([2]ResourceLevelConfig!$H109*0.05,0) -> 102 | F109: 305
A110: 106 | B110: =ROUND([2]ResourceLevelConfig!$E110*0.05,0) -> 103 | C110: =ROUND([2]ResourceLevelConfig!$C110*0.05,0) -> 103 | D110: =ROUND([2]ResourceLevelConfig!$G110*0.05,0) -> 103 | E110: =ROUND([2]ResourceLevelConfig!$H110*0.05,0) -> 103 | F110: 306
A111: 107 | B111: =ROUND([2]ResourceLevelConfig!$E111*0.05,0) -> 103 | C111: =ROUND([2]ResourceLevelConfig!$C111*0.05,0) -> 103 | D111: =ROUND([2]ResourceLevelConfig!$G111*0.05,0) -> 103 | E111: =ROUND([2]ResourceLevelConfig!$H111*0.05,0) -> 103 | F111: 307
A112: 108 | B112: =ROUND([2]ResourceLevelConfig!$E112*0.05,0) -> 104 | C112: =ROUND([2]ResourceLevelConfig!$C112*0.05,0) -> 104 | D112: =ROUND([2]ResourceLevelConfig!$G112*0.05,0) -> 104 | E112: =ROUND([2]ResourceLevelConfig!$H112*0.05,0) -> 104 | F112: 308
A113: 109 | B113: =ROUND([2]ResourceLevelConfig!$E113*0.05,0) -> 104 | C113: =ROUND([2]ResourceLevelConfig!$C113*0.05,0) -> 104 | D113: =ROUND([2]ResourceLevelConfig!$G113*0.05,0) -> 104 | E113: =ROUND([2]ResourceLevelConfig!$H113*0.05,0) -> 104 | F113: 309
A114: 110 | B114: =ROUND([2]ResourceLevelConfig!$E114*0.05,0) -> 105 | C114: =ROUND([2]ResourceLevelConfig!$C114*0.05,0) -> 105 | D114: =ROUND([2]ResourceLevelConfig!$G114*0.05,0) -> 105 | E114: =ROUND([2]ResourceLevelConfig!$H114*0.05,0) -> 105 | F114: 310
A115: 111 | B115: =ROUND([2]ResourceLevelConfig!$E115*0.05,0) -> 105 | C115: =ROUND([2]ResourceLevelConfig!$C115*0.05,0) -> 105 | D115: =ROUND([2]ResourceLevelConfig!$G115*0.05,0) -> 105 | E115: =ROUND([2]ResourceLevelConfig!$H115*0.05,0) -> 105 | F115: 311
A116: 112 | B116: =ROUND([2]ResourceLevelConfig!$E116*0.05,0) -> 106 | C116: =ROUND([2]ResourceLevelConfig!$C116*0.05,0) -> 106 | D116: =ROUND([2]ResourceLevelConfig!$G116*0.05,0) -> 106 | E116: =ROUND([2]ResourceLevelConfig!$H116*0.05,0) -> 106 | F116: 312
A117: 113 | B117: =ROUND([2]ResourceLevelConfig!$E117*0.05,0) -> 106 | C117: =ROUND([2]ResourceLevelConfig!$C117*0.05,0) -> 106 | D117: =ROUND([2]ResourceLevelConfig!$G117*0.05,0) -> 106 | E117: =ROUND([2]ResourceLevelConfig!$H117*0.05,0) -> 106 | F117: 313
A118: 114 | B118: =ROUND([2]ResourceLevelConfig!$E118*0.05,0) -> 107 | C118: =ROUND([2]ResourceLevelConfig!$C118*0.05,0) -> 107 | D118: =ROUND([2]ResourceLevelConfig!$G118*0.05,0) -> 107 | E118: =ROUND([2]ResourceLevelConfig!$H118*0.05,0) -> 107 | F118: 314
A119: 115 | B119: =ROUND([2]ResourceLevelConfig!$E119*0.05,0) -> 107 | C119: =ROUND([2]ResourceLevelConfig!$C119*0.05,0) -> 107 | D119: =ROUND([2]ResourceLevelConfig!$G119*0.05,0) -> 107 | E119: =ROUND([2]ResourceLevelConfig!$H119*0.05,0) -> 107 | F119: 315
A120: 116 | B120: =ROUND([2]ResourceLevelConfig!$E120*0.05,0) -> 108 | C120: =ROUND([2]ResourceLevelConfig!$C120*0.05,0) -> 108 | D120: =ROUND([2]ResourceLevelConfig!$G120*0.05,0) -> 108 | E120: =ROUND([2]ResourceLevelConfig!$H120*0.05,0) -> 108 | F120: 316
A121: 117 | B121: =ROUND([2]ResourceLevelConfig!$E121*0.05,0) -> 108 | C121: =ROUND([2]ResourceLevelConfig!$C121*0.05,0) -> 108 | D121: =ROUND([2]ResourceLevelConfig!$G121*0.05,0) -> 108 | E121: =ROUND([2]ResourceLevelConfig!$H121*0.05,0) -> 108 | F121: 317
A122: 118 | B122: =ROUND([2]ResourceLevelConfig!$E122*0.05,0) -> 109 | C122: =ROUND([2]ResourceLevelConfig!$C122*0.05,0) -> 109 | D122: =ROUND([2]ResourceLevelConfig!$G122*0.05,0) -> 109 | E122: =ROUND([2]ResourceLevelConfig!$H122*0.05,0) -> 109 | F122: 318
A123: 119 | B123: =ROUND([2]ResourceLevelConfig!$E123*0.05,0) -> 109 | C123: =ROUND([2]ResourceLevelConfig!$C123*0.05,0) -> 109 | D123: =ROUND([2]ResourceLevelConfig!$G123*0.05,0) -> 109 | E123: =ROUND([2]ResourceLevelConfig!$H123*0.05,0) -> 109 | F123: 319
A124: 120 | B124: =ROUND([2]ResourceLevelConfig!$E124*0.05,0) -> 110 | C124: =ROUND([2]ResourceLevelConfig!$C124*0.05,0) -> 110 | D124: =ROUND([2]ResourceLevelConfig!$G124*0.05,0) -> 110 | E124: =ROUND([2]ResourceLevelConfig!$H124*0.05,0) -> 110 | F124: 320
A125: 121 | B125: =ROUND([2]ResourceLevelConfig!$E125*0.05,0) -> 110 | C125: =ROUND([2]ResourceLevelConfig!$C125*0.05,0) -> 110 | D125: =ROUND([2]ResourceLevelConfig!$G125*0.05,0) -> 110 | E125: =ROUND([2]ResourceLevelConfig!$H125*0.05,0) -> 110 | F125: 321
A126: 122 | B126: =ROUND([2]ResourceLevelConfig!$E126*0.05,0) -> 111 | C126: =ROUND([2]ResourceLevelConfig!$C126*0.05,0) -> 111 | D126: =ROUND([2]ResourceLevelConfig!$G126*0.05,0) -> 111 | E126: =ROUND([2]ResourceLevelConfig!$H126*0.05,0) -> 111 | F126: 322
A127: 123 | B127: =ROUND([2]ResourceLevelConfig!$E127*0.05,0) -> 111 | C127: =ROUND([2]ResourceLevelConfig!$C127*0.05,0) -> 111 | D127: =ROUND([2]ResourceLevelConfig!$G127*0.05,0) -> 111 | E127: =ROUND([2]ResourceLevelConfig!$H127*0.05,0) -> 111 | F127: 323
A128: 124 | B128: =ROUND([2]ResourceLevelConfig!$E128*0.05,0) -> 112 | C128: =ROUND([2]ResourceLevelConfig!$C128*0.05,0) -> 112 | D128: =ROUND([2]ResourceLevelConfig!$G128*0.05,0) -> 112 | E128: =ROUND([2]ResourceLevelConfig!$H128*0.05,0) -> 112 | F128: 324
A129: 125 | B129: =ROUND([2]ResourceLevelConfig!$E129*0.05,0) -> 112 | C129: =ROUND([2]ResourceLevelConfig!$C129*0.05,0) -> 112 | D129: =ROUND([2]ResourceLevelConfig!$G129*0.05,0) -> 112 | E129: =ROUND([2]ResourceLevelConfig!$H129*0.05,0) -> 112 | F129: 325
A130: 126 | B130: =ROUND([2]ResourceLevelConfig!$E130*0.05,0) -> 113 | C130: =ROUND([2]ResourceLevelConfig!$C130*0.05,0) -> 113 | D130: =ROUND([2]ResourceLevelConfig!$G130*0.05,0) -> 113 | E130: =ROUND([2]ResourceLevelConfig!$H130*0.05,0) -> 113 | F130: 326
A131: 127 | B131: =ROUND([2]ResourceLevelConfig!$E131*0.05,0) -> 113 | C131: =ROUND([2]ResourceLevelConfig!$C131*0.05,0) -> 113 | D131: =ROUND([2]ResourceLevelConfig!$G131*0.05,0) -> 113 | E131: =ROUND([2]ResourceLevelConfig!$H131*0.05,0) -> 113 | F131: 327
A132: 128 | B132: =ROUND([2]ResourceLevelConfig!$E132*0.05,0) -> 114 | C132: =ROUND([2]ResourceLevelConfig!$C132*0.05,0) -> 114 | D132: =ROUND([2]ResourceLevelConfig!$G132*0.05,0) -> 114 | E132: =ROUND([2]ResourceLevelConfig!$H132*0.05,0) -> 114 | F132: 328
A133: 129 | B133: =ROUND([2]ResourceLevelConfig!$E133*0.05,0) -> 114 | C133: =ROUND([2]ResourceLevelConfig!$C133*0.05,0) -> 114 | D133: =ROUND([2]ResourceLevelConfig!$G133*0.05,0) -> 114 | E133: =ROUND([2]ResourceLevelConfig!$H133*0.05,0) -> 114 | F133: 329
A134: 130 | B134: =ROUND([2]ResourceLevelConfig!$E134*0.05,0) -> 115 | C134: =ROUND([2]ResourceLevelConfig!$C134*0.05,0) -> 115 | D134: =ROUND([2]ResourceLevelConfig!$G134*0.05,0) -> 115 | E134: =ROUND([2]ResourceLevelConfig!$H134*0.05,0) -> 115 | F134: 330
A135: 131 | B135: =ROUND([2]ResourceLevelConfig!$E135*0.05,0) -> 115 | C135: =ROUND([2]ResourceLevelConfig!$C135*0.05,0) -> 115 | D135: =ROUND([2]ResourceLevelConfig!$G135*0.05,0) -> 115 | E135: =ROUND([2]ResourceLevelConfig!$H135*0.05,0) -> 115 | F135: 331
A136: 132 | B136: =ROUND([2]ResourceLevelConfig!$E136*0.05,0) -> 116 | C136: =ROUND([2]ResourceLevelConfig!$C136*0.05,0) -> 116 | D136: =ROUND([2]ResourceLevelConfig!$G136*0.05,0) -> 116 | E136: =ROUND([2]ResourceLevelConfig!$H136*0.05,0) -> 116 | F136: 332
A137: 133 | B137: =ROUND([2]ResourceLevelConfig!$E137*0.05,0) -> 116 | C137: =ROUND([2]ResourceLevelConfig!$C137*0.05,0) -> 116 | D137: =ROUND([2]ResourceLevelConfig!$G137*0.05,0) -> 116 | E137: =ROUND([2]ResourceLevelConfig!$H137*0.05,0) -> 116 | F137: 333
A138: 134 | B138: =ROUND([2]ResourceLevelConfig!$E138*0.05,0) -> 117 | C138: =ROUND([2]ResourceLevelConfig!$C138*0.05,0) -> 117 | D138: =ROUND([2]ResourceLevelConfig!$G138*0.05,0) -> 117 | E138: =ROUND([2]ResourceLevelConfig!$H138*0.05,0) -> 117 | F138: 334
A139: 135 | B139: =ROUND([2]ResourceLevelConfig!$E139*0.05,0) -> 117 | C139: =ROUND([2]ResourceLevelConfig!$C139*0.05,0) -> 117 | D139: =ROUND([2]ResourceLevelConfig!$G139*0.05,0) -> 117 | E139: =ROUND([2]ResourceLevelConfig!$H139*0.05,0) -> 117 | F139: 335
A140: 136 | B140: =ROUND([2]ResourceLevelConfig!$E140*0.05,0) -> 118 | C140: =ROUND([2]ResourceLevelConfig!$C140*0.05,0) -> 118 | D140: =ROUND([2]ResourceLevelConfig!$G140*0.05,0) -> 118 | E140: =ROUND([2]ResourceLevelConfig!$H140*0.05,0) -> 118 | F140: 336
A141: 137 | B141: =ROUND([2]ResourceLevelConfig!$E141*0.05,0) -> 118 | C141: =ROUND([2]ResourceLevelConfig!$C141*0.05,0) -> 118 | D141: =ROUND([2]ResourceLevelConfig!$G141*0.05,0) -> 118 | E141: =ROUND([2]ResourceLevelConfig!$H141*0.05,0) -> 118 | F141: 337
A142: 138 | B142: =ROUND([2]ResourceLevelConfig!$E142*0.05,0) -> 119 | C142: =ROUND([2]ResourceLevelConfig!$C142*0.05,0) -> 119 | D142: =ROUND([2]ResourceLevelConfig!$G142*0.05,0) -> 119 | E142: =ROUND([2]ResourceLevelConfig!$H142*0.05,0) -> 119 | F142: 338
A143: 139 | B143: =ROUND([2]ResourceLevelConfig!$E143*0.05,0) -> 119 | C143: =ROUND([2]ResourceLevelConfig!$C143*0.05,0) -> 119 | D143: =ROUND([2]ResourceLevelConfig!$G143*0.05,0) -> 119 | E143: =ROUND([2]ResourceLevelConfig!$H143*0.05,0) -> 119 | F143: 339
A144: 140 | B144: =ROUND([2]ResourceLevelConfig!$E144*0.05,0) -> 120 | C144: =ROUND([2]ResourceLevelConfig!$C144*0.05,0) -> 120 | D144: =ROUND([2]ResourceLevelConfig!$G144*0.05,0) -> 120 | E144: =ROUND([2]ResourceLevelConfig!$H144*0.05,0) -> 120 | F144: 340
A145: 141 | B145: =ROUND([2]ResourceLevelConfig!$E145*0.05,0) -> 120 | C145: =ROUND([2]ResourceLevelConfig!$C145*0.05,0) -> 120 | D145: =ROUND([2]ResourceLevelConfig!$G145*0.05,0) -> 120 | E145: =ROUND([2]ResourceLevelConfig!$H145*0.05,0) -> 120 | F145: 341
A146: 142 | B146: =ROUND([2]ResourceLevelConfig!$E146*0.05,0) -> 121 | C146: =ROUND([2]ResourceLevelConfig!$C146*0.05,0) -> 121 | D146: =ROUND([2]ResourceLevelConfig!$G146*0.05,0) -> 121 | E146: =ROUND([2]ResourceLevelConfig!$H146*0.05,0) -> 121 | F146: 342
A147: 143 | B147: =ROUND([2]ResourceLevelConfig!$E147*0.05,0) -> 121 | C147: =ROUND([2]ResourceLevelConfig!$C147*0.05,0) -> 121 | D147: =ROUND([2]ResourceLevelConfig!$G147*0.05,0) -> 121 | E147: =ROUND([2]ResourceLevelConfig!$H147*0.05,0) -> 121 | F147: 343
A148: 144 | B148: =ROUND([2]ResourceLevelConfig!$E148*0.05,0) -> 122 | C148: =ROUND([2]ResourceLevelConfig!$C148*0.05,0) -> 122 | D148: =ROUND([2]ResourceLevelConfig!$G148*0.05,0) -> 122 | E148: =ROUND([2]ResourceLevelConfig!$H148*0.05,0) -> 122 | F148: 344
A149: 145 | B149: =ROUND([2]ResourceLevelConfig!$E149*0.05,0) -> 122 | C149: =ROUND([2]ResourceLevelConfig!$C149*0.05,0) -> 122 | D149: =ROUND([2]ResourceLevelConfig!$G149*0.05,0) -> 122 | E149: =ROUND([2]ResourceLevelConfig!$H149*0.05,0) -> 122 | F149: 345
A150: 146 | B150: =ROUND([2]ResourceLevelConfig!$E150*0.05,0) -> 123 | C150: =ROUND([2]ResourceLevelConfig!$C150*0.05,0) -> 123 | D150: =ROUND([2]ResourceLevelConfig!$G150*0.05,0) -> 123 | E150: =ROUND([2]ResourceLevelConfig!$H150*0.05,0) -> 123 | F150: 346
A151: 147 | B151: =ROUND([2]ResourceLevelConfig!$E151*0.05,0) -> 123 | C151: =ROUND([2]ResourceLevelConfig!$C151*0.05,0) -> 123 | D151: =ROUND([2]ResourceLevelConfig!$G151*0.05,0) -> 123 | E151: =ROUND([2]ResourceLevelConfig!$H151*0.05,0) -> 123 | F151: 347
A152: 148 | B152: =ROUND([2]ResourceLevelConfig!$E152*0.05,0) -> 124 | C152: =ROUND([2]ResourceLevelConfig!$C152*0.05,0) -> 124 | D152: =ROUND([2]ResourceLevelConfig!$G152*0.05,0) -> 124 | E152: =ROUND([2]ResourceLevelConfig!$H152*0.05,0) -> 124 | F152: 348
A153: 149 | B153: =ROUND([2]ResourceLevelConfig!$E153*0.05,0) -> 124 | C153: =ROUND([2]ResourceLevelConfig!$C153*0.05,0) -> 124 | D153: =ROUND([2]ResourceLevelConfig!$G153*0.05,0) -> 124 | E153: =ROUND([2]ResourceLevelConfig!$H153*0.05,0) -> 124 | F153: 349
A154: 150 | B154: =ROUND([2]ResourceLevelConfig!$E154*0.05,0) -> 125 | C154: =ROUND([2]ResourceLevelConfig!$C154*0.05,0) -> 125 | D154: =ROUND([2]ResourceLevelConfig!$G154*0.05,0) -> 125 | E154: =ROUND([2]ResourceLevelConfig!$H154*0.05,0) -> 125 | F154: 350
A155: 151 | B155: =ROUND([2]ResourceLevelConfig!$E155*0.05,0) -> 125 | C155: =ROUND([2]ResourceLevelConfig!$C155*0.05,0) -> 125 | D155: =ROUND([2]ResourceLevelConfig!$G155*0.05,0) -> 125 | E155: =ROUND([2]ResourceLevelConfig!$H155*0.05,0) -> 125 | F155: 351
A156: 152 | B156: =ROUND([2]ResourceLevelConfig!$E156*0.05,0) -> 126 | C156: =ROUND([2]ResourceLevelConfig!$C156*0.05,0) -> 126 | D156: =ROUND([2]ResourceLevelConfig!$G156*0.05,0) -> 126 | E156: =ROUND([2]ResourceLevelConfig!$H156*0.05,0) -> 126 | F156: 352
A157: 153 | B157: =ROUND([2]ResourceLevelConfig!$E157*0.05,0) -> 126 | C157: =ROUND([2]ResourceLevelConfig!$C157*0.05,0) -> 126 | D157: =ROUND([2]ResourceLevelConfig!$G157*0.05,0) -> 126 | E157: =ROUND([2]ResourceLevelConfig!$H157*0.05,0) -> 126 | F157: 353
A158: 154 | B158: =ROUND([2]ResourceLevelConfig!$E158*0.05,0) -> 127 | C158: =ROUND([2]ResourceLevelConfig!$C158*0.05,0) -> 127 | D158: =ROUND([2]ResourceLevelConfig!$G158*0.05,0) -> 127 | E158: =ROUND([2]ResourceLevelConfig!$H158*0.05,0) -> 127 | F158: 354
A159: 155 | B159: =ROUND([2]ResourceLevelConfig!$E159*0.05,0) -> 127 | C159: =ROUND([2]ResourceLevelConfig!$C159*0.05,0) -> 127 | D159: =ROUND([2]ResourceLevelConfig!$G159*0.05,0) -> 127 | E159: =ROUND([2]ResourceLevelConfig!$H159*0.05,0) -> 127 | F159: 355
A160: 156 | B160: =ROUND([2]ResourceLevelConfig!$E160*0.05,0) -> 128 | C160: =ROUND([2]ResourceLevelConfig!$C160*0.05,0) -> 128 | D160: =ROUND([2]ResourceLevelConfig!$G160*0.05,0) -> 128 | E160: =ROUND([2]ResourceLevelConfig!$H160*0.05,0) -> 128 | F160: 356
A161: 157 | B161: =ROUND([2]ResourceLevelConfig!$E161*0.05,0) -> 128 | C161: =ROUND([2]ResourceLevelConfig!$C161*0.05,0) -> 128 | D161: =ROUND([2]ResourceLevelConfig!$G161*0.05,0) -> 128 | E161: =ROUND([2]ResourceLevelConfig!$H161*0.05,0) -> 128 | F161: 357
A162: 158 | B162: =ROUND([2]ResourceLevelConfig!$E162*0.05,0) -> 129 | C162: =ROUND([2]ResourceLevelConfig!$C162*0.05,0) -> 129 | D162: =ROUND([2]ResourceLevelConfig!$G162*0.05,0) -> 129 | E162: =ROUND([2]ResourceLevelConfig!$H162*0.05,0) -> 129 | F162: 358
A163: 159 | B163: =ROUND([2]ResourceLevelConfig!$E163*0.05,0) -> 129 | C163: =ROUND([2]ResourceLevelConfig!$C163*0.05,0) -> 129 | D163: =ROUND([2]ResourceLevelConfig!$G163*0.05,0) -> 129 | E163: =ROUND([2]ResourceLevelConfig!$H163*0.05,0) -> 129 | F163: 359
A164: 160 | B164: =ROUND([2]ResourceLevelConfig!$E164*0.05,0) -> 130 | C164: =ROUND([2]ResourceLevelConfig!$C164*0.05,0) -> 130 | D164: =ROUND([2]ResourceLevelConfig!$G164*0.05,0) -> 130 | E164: =ROUND([2]ResourceLevelConfig!$H164*0.05,0) -> 130 | F164: 360
A165: 161 | B165: =ROUND([2]ResourceLevelConfig!$E165*0.05,0) -> 130 | C165: =ROUND([2]ResourceLevelConfig!$C165*0.05,0) -> 130 | D165: =ROUND([2]ResourceLevelConfig!$G165*0.05,0) -> 130 | E165: =ROUND([2]ResourceLevelConfig!$H165*0.05,0) -> 130 | F165: 361
A166: 162 | B166: =ROUND([2]ResourceLevelConfig!$E166*0.05,0) -> 131 | C166: =ROUND([2]ResourceLevelConfig!$C166*0.05,0) -> 131 | D166: =ROUND([2]ResourceLevelConfig!$G166*0.05,0) -> 131 | E166: =ROUND([2]ResourceLevelConfig!$H166*0.05,0) -> 131 | F166: 362
A167: 163 | B167: =ROUND([2]ResourceLevelConfig!$E167*0.05,0) -> 131 | C167: =ROUND([2]ResourceLevelConfig!$C167*0.05,0) -> 131 | D167: =ROUND([2]ResourceLevelConfig!$G167*0.05,0) -> 131 | E167: =ROUND([2]ResourceLevelConfig!$H167*0.05,0) -> 131 | F167: 363
A168: 164 | B168: =ROUND([2]ResourceLevelConfig!$E168*0.05,0) -> 132 | C168: =ROUND([2]ResourceLevelConfig!$C168*0.05,0) -> 132 | D168: =ROUND([2]ResourceLevelConfig!$G168*0.05,0) -> 132 | E168: =ROUND([2]ResourceLevelConfig!$H168*0.05,0) -> 132 | F168: 364
A169: 165 | B169: =ROUND([2]ResourceLevelConfig!$E169*0.05,0) -> 132 | C169: =ROUND([2]ResourceLevelConfig!$C169*0.05,0) -> 132 | D169: =ROUND([2]ResourceLevelConfig!$G169*0.05,0) -> 132 | E169: =ROUND([2]ResourceLevelConfig!$H169*0.05,0) -> 132 | F169: 365
A170: 166 | B170: =ROUND([2]ResourceLevelConfig!$E170*0.05,0) -> 133 | C170: =ROUND([2]ResourceLevelConfig!$C170*0.05,0) -> 133 | D170: =ROUND([2]ResourceLevelConfig!$G170*0.05,0) -> 133 | E170: =ROUND([2]ResourceLevelConfig!$H170*0.05,0) -> 133 | F170: 366
A171: 167 | B171: =ROUND([2]ResourceLevelConfig!$E171*0.05,0) -> 133 | C171: =ROUND([2]ResourceLevelConfig!$C171*0.05,0) -> 133 | D171: =ROUND([2]ResourceLevelConfig!$G171*0.05,0) -> 133 | E171: =ROUND([2]ResourceLevelConfig!$H171*0.05,0) -> 133 | F171: 367
A172: 168 | B172: =ROUND([2]ResourceLevelConfig!$E172*0.05,0) -> 134 | C172: =ROUND([2]ResourceLevelConfig!$C172*0.05,0) -> 134 | D172: =ROUND([2]ResourceLevelConfig!$G172*0.05,0) -> 134 | E172: =ROUND([2]ResourceLevelConfig!$H172*0.05,0) -> 134 | F172: 368
A173: 169 | B173: =ROUND([2]ResourceLevelConfig!$E173*0.05,0) -> 134 | C173: =ROUND([2]ResourceLevelConfig!$C173*0.05,0) -> 134 | D173: =ROUND([2]ResourceLevelConfig!$G173*0.05,0) -> 134 | E173: =ROUND([2]ResourceLevelConfig!$H173*0.05,0) -> 134 | F173: 369
A174: 170 | B174: =ROUND([2]ResourceLevelConfig!$E174*0.05,0) -> 135 | C174: =ROUND([2]ResourceLevelConfig!$C174*0.05,0) -> 135 | D174: =ROUND([2]ResourceLevelConfig!$G174*0.05,0) -> 135 | E174: =ROUND([2]ResourceLevelConfig!$H174*0.05,0) -> 135 | F174: 370
A175: 171 | B175: =ROUND([2]ResourceLevelConfig!$E175*0.05,0) -> 135 | C175: =ROUND([2]ResourceLevelConfig!$C175*0.05,0) -> 135 | D175: =ROUND([2]ResourceLevelConfig!$G175*0.05,0) -> 135 | E175: =ROUND([2]ResourceLevelConfig!$H175*0.05,0) -> 135 | F175: 371
A176: 172 | B176: =ROUND([2]ResourceLevelConfig!$E176*0.05,0) -> 136 | C176: =ROUND([2]ResourceLevelConfig!$C176*0.05,0) -> 136 | D176: =ROUND([2]ResourceLevelConfig!$G176*0.05,0) -> 136 | E176: =ROUND([2]ResourceLevelConfig!$H176*0.05,0) -> 136 | F176: 372
A177: 173 | B177: =ROUND([2]ResourceLevelConfig!$E177*0.05,0) -> 136 | C177: =ROUND([2]ResourceLevelConfig!$C177*0.05,0) -> 136 | D177: =ROUND([2]ResourceLevelConfig!$G177*0.05,0) -> 136 | E177: =ROUND([2]ResourceLevelConfig!$H177*0.05,0) -> 136 | F177: 373
A178: 174 | B178: =ROUND([2]ResourceLevelConfig!$E178*0.05,0) -> 137 | C178: =ROUND([2]ResourceLevelConfig!$C178*0.05,0) -> 137 | D178: =ROUND([2]ResourceLevelConfig!$G178*0.05,0) -> 137 | E178: =ROUND([2]ResourceLevelConfig!$H178*0.05,0) -> 137 | F178: 374
A179: 175 | B179: =ROUND([2]ResourceLevelConfig!$E179*0.05,0) -> 137 | C179: =ROUND([2]ResourceLevelConfig!$C179*0.05,0) -> 137 | D179: =ROUND([2]ResourceLevelConfig!$G179*0.05,0) -> 137 | E179: =ROUND([2]ResourceLevelConfig!$H179*0.05,0) -> 137 | F179: 375
A180: 176 | B180: =ROUND([2]ResourceLevelConfig!$E180*0.05,0) -> 138 | C180: =ROUND([2]ResourceLevelConfig!$C180*0.05,0) -> 138 | D180: =ROUND([2]ResourceLevelConfig!$G180*0.05,0) -> 138 | E180: =ROUND([2]ResourceLevelConfig!$H180*0.05,0) -> 138 | F180: 376
A181: 177 | B181: =ROUND([2]ResourceLevelConfig!$E181*0.05,0) -> 138 | C181: =ROUND([2]ResourceLevelConfig!$C181*0.05,0) -> 138 | D181: =ROUND([2]ResourceLevelConfig!$G181*0.05,0) -> 138 | E181: =ROUND([2]ResourceLevelConfig!$H181*0.05,0) -> 138 | F181: 377
A182: 178 | B182: =ROUND([2]ResourceLevelConfig!$E182*0.05,0) -> 139 | C182: =ROUND([2]ResourceLevelConfig!$C182*0.05,0) -> 139 | D182: =ROUND([2]ResourceLevelConfig!$G182*0.05,0) -> 139 | E182: =ROUND([2]ResourceLevelConfig!$H182*0.05,0) -> 139 | F182: 378
A183: 179 | B183: =ROUND([2]ResourceLevelConfig!$E183*0.05,0) -> 139 | C183: =ROUND([2]ResourceLevelConfig!$C183*0.05,0) -> 139 | D183: =ROUND([2]ResourceLevelConfig!$G183*0.05,0) -> 139 | E183: =ROUND([2]ResourceLevelConfig!$H183*0.05,0) -> 139 | F183: 379
A184: 180 | B184: =ROUND([2]ResourceLevelConfig!$E184*0.05,0) -> 140 | C184: =ROUND([2]ResourceLevelConfig!$C184*0.05,0) -> 140 | D184: =ROUND([2]ResourceLevelConfig!$G184*0.05,0) -> 140 | E184: =ROUND([2]ResourceLevelConfig!$H184*0.05,0) -> 140 | F184: 380
A185: 181 | B185: =ROUND([2]ResourceLevelConfig!$E185*0.05,0) -> 140 | C185: =ROUND([2]ResourceLevelConfig!$C185*0.05,0) -> 140 | D185: =ROUND([2]ResourceLevelConfig!$G185*0.05,0) -> 140 | E185: =ROUND([2]ResourceLevelConfig!$H185*0.05,0) -> 140 | F185: 381
A186: 182 | B186: =ROUND([2]ResourceLevelConfig!$E186*0.05,0) -> 141 | C186: =ROUND([2]ResourceLevelConfig!$C186*0.05,0) -> 141 | D186: =ROUND([2]ResourceLevelConfig!$G186*0.05,0) -> 141 | E186: =ROUND([2]ResourceLevelConfig!$H186*0.05,0) -> 141 | F186: 382
A187: 183 | B187: =ROUND([2]ResourceLevelConfig!$E187*0.05,0) -> 141 | C187: =ROUND([2]ResourceLevelConfig!$C187*0.05,0) -> 141 | D187: =ROUND([2]ResourceLevelConfig!$G187*0.05,0) -> 141 | E187: =ROUND([2]ResourceLevelConfig!$H187*0.05,0) -> 141 | F187: 383
A188: 184 | B188: =ROUND([2]ResourceLevelConfig!$E188*0.05,0) -> 142 | C188: =ROUND([2]ResourceLevelConfig!$C188*0.05,0) -> 142 | D188: =ROUND([2]ResourceLevelConfig!$G188*0.05,0) -> 142 | E188: =ROUND([2]ResourceLevelConfig!$H188*0.05,0) -> 142 | F188: 384
A189: 185 | B189: =ROUND([2]ResourceLevelConfig!$E189*0.05,0) -> 142 | C189: =ROUND([2]ResourceLevelConfig!$C189*0.05,0) -> 142 | D189: =ROUND([2]ResourceLevelConfig!$G189*0.05,0) -> 142 | E189: =ROUND([2]ResourceLevelConfig!$H189*0.05,0) -> 142 | F189: 385
A190: 186 | B190: =ROUND([2]ResourceLevelConfig!$E190*0.05,0) -> 143 | C190: =ROUND([2]ResourceLevelConfig!$C190*0.05,0) -> 143 | D190: =ROUND([2]ResourceLevelConfig!$G190*0.05,0) -> 143 | E190: =ROUND([2]ResourceLevelConfig!$H190*0.05,0) -> 143 | F190: 386
A191: 187 | B191: =ROUND([2]ResourceLevelConfig!$E191*0.05,0) -> 143 | C191: =ROUND([2]ResourceLevelConfig!$C191*0.05,0) -> 143 | D191: =ROUND([2]ResourceLevelConfig!$G191*0.05,0) -> 143 | E191: =ROUND([2]ResourceLevelConfig!$H191*0.05,0) -> 143 | F191: 387
A192: 188 | B192: =ROUND([2]ResourceLevelConfig!$E192*0.05,0) -> 144 | C192: =ROUND([2]ResourceLevelConfig!$C192*0.05,0) -> 144 | D192: =ROUND([2]ResourceLevelConfig!$G192*0.05,0) -> 144 | E192: =ROUND([2]ResourceLevelConfig!$H192*0.05,0) -> 144 | F192: 388
A193: 189 | B193: =ROUND([2]ResourceLevelConfig!$E193*0.05,0) -> 144 | C193: =ROUND([2]ResourceLevelConfig!$C193*0.05,0) -> 144 | D193: =ROUND([2]ResourceLevelConfig!$G193*0.05,0) -> 144 | E193: =ROUND([2]ResourceLevelConfig!$H193*0.05,0) -> 144 | F193: 389
A194: 190 | B194: =ROUND([2]ResourceLevelConfig!$E194*0.05,0) -> 145 | C194: =ROUND([2]ResourceLevelConfig!$C194*0.05,0) -> 145 | D194: =ROUND([2]ResourceLevelConfig!$G194*0.05,0) -> 145 | E194: =ROUND([2]ResourceLevelConfig!$H194*0.05,0) -> 145 | F194: 390
A195: 191 | B195: =ROUND([2]ResourceLevelConfig!$E195*0.05,0) -> 145 | C195: =ROUND([2]ResourceLevelConfig!$C195*0.05,0) -> 145 | D195: =ROUND([2]ResourceLevelConfig!$G195*0.05,0) -> 145 | E195: =ROUND([2]ResourceLevelConfig!$H195*0.05,0) -> 145 | F195: 391
A196: 192 | B196: =ROUND([2]ResourceLevelConfig!$E196*0.05,0) -> 146 | C196: =ROUND([2]ResourceLevelConfig!$C196*0.05,0) -> 146 | D196: =ROUND([2]ResourceLevelConfig!$G196*0.05,0) -> 146 | E196: =ROUND([2]ResourceLevelConfig!$H196*0.05,0) -> 146 | F196: 392
A197: 193 | B197: =ROUND([2]ResourceLevelConfig!$E197*0.05,0) -> 146 | C197: =ROUND([2]ResourceLevelConfig!$C197*0.05,0) -> 146 | D197: =ROUND([2]ResourceLevelConfig!$G197*0.05,0) -> 146 | E197: =ROUND([2]ResourceLevelConfig!$H197*0.05,0) -> 146 | F197: 393
A198: 194 | B198: =ROUND([2]ResourceLevelConfig!$E198*0.05,0) -> 147 | C198: =ROUND([2]ResourceLevelConfig!$C198*0.05,0) -> 147 | D198: =ROUND([2]ResourceLevelConfig!$G198*0.05,0) -> 147 | E198: =ROUND([2]ResourceLevelConfig!$H198*0.05,0) -> 147 | F198: 394
A199: 195 | B199: =ROUND([2]ResourceLevelConfig!$E199*0.05,0) -> 147 | C199: =ROUND([2]ResourceLevelConfig!$C199*0.05,0) -> 147 | D199: =ROUND([2]ResourceLevelConfig!$G199*0.05,0) -> 147 | E199: =ROUND([2]ResourceLevelConfig!$H199*0.05,0) -> 147 | F199: 395
A200: 196 | B200: =ROUND([2]ResourceLevelConfig!$E200*0.05,0) -> 148 | C200: =ROUND([2]ResourceLevelConfig!$C200*0.05,0) -> 148 | D200: =ROUND([2]ResourceLevelConfig!$G200*0.05,0) -> 148 | E200: =ROUND([2]ResourceLevelConfig!$H200*0.05,0) -> 148 | F200: 396
A201: 197 | B201: =ROUND([2]ResourceLevelConfig!$E201*0.05,0) -> 148 | C201: =ROUND([2]ResourceLevelConfig!$C201*0.05,0) -> 148 | D201: =ROUND([2]ResourceLevelConfig!$G201*0.05,0) -> 148 | E201: =ROUND([2]ResourceLevelConfig!$H201*0.05,0) -> 148 | F201: 397
... 103 more rows
